Workbook

Sheet Data1
A1: Haver | B1: Full name | C1: MSA | D1: State | E1: Border | F1: PCI_2019 | G1: PCI_2020 | H1: USA_2020 | I1: YoY Growth | J1: Share | K1: 2019_Real2020 | L1: 2020_Real2020 | M1: YoY Real | N1: Rank PCI | Q1: Year | R1: PCUN@USECON | S1: Decimal
A2: ABLYPP@PIRMSA | B2: Abilene, TX ($) | C2: Abilene | D2: TX | F2: 46493 | G2: 49948 | H2: 59494 | I2: =(G2/F2-1)*100 -> 7.431226206 | J2: =G2/H2*100 -> 83.95468451 | K2: =F2/$S$2 -> 47066.57679 | L2: =G2/$S$3 -> 49948 | M2: =(L2/K2-1)*100 -> 6.122015672 | N2: =RANK(J2,$J$2:$J$69) -> 17 | Q2: 2019 | R2: 255.657 | S2: =R2/R3 -> 0.987813501
A3: ALCYPP@PIRMSA | B3: Alice, TX MicroSA ($) | C3: Alice | D3: TX | F3: 41620 | G3: 45608 | H3: 59494 | I3: 9.581931764 | J3: 76.65983124 | K3: 42133.45936 | L3: 45608 | M3: 8.246511659 | N3: 32 | Q3: 2020 | R3: 258.811 | S3: =R3/R3 -> 1
A4: AMAYPP@PIRMSA | B4: Amarillo, TX ($) | C4: Amarillo | D4: TX | F4: 49008 | G4: 51116 | H4: 59494 | I4: 4.301338557 | J4: 85.91790769 | K4: 49612.60395 | L4: 51116 | M4: 3.030270396 | N4: 14
A5: ANWYPP@PIRMSA | B5: Andrews, TX MicroSA ($) | C5: Andrews | D5: TX | F5: 52626 | G5: 50248 | H5: 59494 | I5: -4.51867898 | J5: 84.45893704 | K5: 53275.23864 | L5: 50248 | M5: -5.682262006 | N5: 15 | Q5: US per cap inc
A6: ATTYPP@PIRMSA | B6: Athens, TX MicroSA ($) | C6: Athens | D6: TX | F6: 41161 | G6: 43356 | H6: 59494 | I6: 5.332717864 | J6: 72.87457559 | K6: 41668.79675 | L6: 43356 | M6: 4.0490808 | N6: 45 | Q6: Year | R6: USYPPQ@PIQR
A7: AUSYPP@PIRMSA | B7: Austin-Round Rock-Georgetown, TX ($) | C7: Austin–Round Rock–Georgetown | D7: TX | F7: 62460 | G7: 64913 | H7: 59494 | I7: 3.927313481 | J7: 109.1084815 | K7: 63230.55915 | L7: 64913 | M7: 2.660803376 | N7: 2 | Q7: 2019 | R7: 56039
A8: BEEYPP@PIRMSA | B8: Beeville, TX MicroSA ($) | C8: Beeville | D8: TX | F8: 30533 | G8: 31834 | H8: 59494 | I8: 4.260963548 | J8: 53.50791676 | K8: 30909.68079 | L8: 31834 | M8: 2.990387417 | N8: 63 | Q8: 2020 | R8: 59494
A9: BGSYPP@PIRMSA | B9: Big Spring, TX MicroSA ($) | C9: Big Spring | D9: TX | F9: 44014 | G9: 45105 | H9: 59494 | I9: 2.478756759 | J9: 75.81436784 | K9: 44556.99376 | L9: 45105 | M9: 1.22989949 | N9: 38
A10: BMTYPP@PIRMSA | B10: Beaumont–Port Arthur, TX ($) | C10: Beaumont–Port Arthur | D10: TX | F10: 45115 | G10: 47281 | H10: 59494 | I10: 4.801063948 | J10: 79.47187952 | K10: 45671.57662 | L10: 47281 | M10: 3.523905884 | N10: 24
A11: BORYPP@PIRMSA | B11: Borger, TX MicroSA ($) | C11: Borger | D11: TX | F11: 44195 | G11: 46860 | H11: 59494 | I11: 6.030093902 | J11: 78.76424513 | K11: 44740.22673 | L11: 46860 | M11: 4.737958266 | N11: 28
A12: BRHYPP@PIRMSA | B12: Brenham, TX MicroSA ($) | C12: Brenham | D12: TX | F12: 57635 | G12: 58426 | H12: 59494 | I12: 1.372429947 | J12: 98.20486099 | K12: 58346.03389 | L12: 58426 | M12: 0.137054928 | N12: 5
A13: BRNYPP@PIRMSA | B13: College Station–Bryan, TX ($) | C13: College Station–Bryan | D13: TX | F13: 41965 | G13: 44037 | H13: 59494 | I13: 4.937447873 | J13: 74.01922883 | K13: 42482.71557 | L13: 44037 | M13: 3.658627767 | N13: 42
A14: BVLYPP@PIRMSA | B14: Brownsville–Harlingen, TX ($) | C14: Brownsville–Harlingen | D14: TX | E14: Border | F14: 30187 | G14: 33690 | H14: 59494 | I14: 11.60433299 | J14: 56.62755908 | K14: 30559.41225 | L14: 33690 | M14: 10.2442669 | N14: 60
A15: BWWYPP@PIRMSA | B15: Brownwood, TX MicroSA ($) | C15: Brownwood | D15: TX | F15: 40449 | G15: 42771 | H15: 59494 | I15: 5.740562189 | J15: 71.89128315 | K15: 40948.01292 | L15: 42771 | M15: 4.451954931 | N15: 47
A16: BYCYPP@PIRMSA | B16: Bay City, TX MicroSA ($) | C16: Bay City | D16: TX | F16: 46469 | G16: 48150 | H16: 59494 | I16: 3.617465407 | J16: 80.93253101 | K16: 47042.28071 | L16: 48150 | M16: 2.354731266 | N16: 21
A17: CPCYPP@PIRMSA | B17: Corpus Christi, TX ($) | C17: Corpus Christi | D17: TX | F17: 46336 | G17: 48060 | H17: 59494 | I17: 3.720649171 | J17: 80.78125525 | K17: 46907.63991 | L17: 48060 | M17: 2.456657581 | N17: 22
A18: CRSYPP@PIRMSA | B18: Corsicana, TX MicroSA ($) | C18: Corsicana | D18: TX | F18: 40543 | G18: 42869 | H18: 59494 | I18: 5.737118615 | J18: 72.05600565 | K18: 41043.17258 | L18: 42869 | M18: 4.448553322 | N18: 46
A19: DELYPP@PIRMSA | B19: Del Rio, TX MicroSA ($) | C19: Del Rio | D19: TX | E19: Border | F19: 38543 | G19: 41079 | H19: 59494 | I19: 6.579664271 | J19: 69.04729889 | K19: 39018.4989 | L19: 41079 | M19: 5.280831296 | N19: 53
A20: DFWYPP@PIRMSA | B20: Dallas–Fort Worth–Arlington, TX ($) | C20: Dallas–Fort Worth–Arlington | D20: TX | F20: 59409 | G20: 61554 | H20: 59494 | I20: 3.610564056 | J20: 103.462534 | K20: 60141.91944 | L20: 61554 | M20: 2.347914018 | N20: 3
A21: DUMYPP@PIRMSA | B21: Dumas, TX MicroSA ($) | C21: Dumas | D21: TX | F21: 47887 | G21: 51476 | H21: 59494 | I21: 7.49472717 | J21: 86.52301072 | K21: 48477.77435 | L21: 51476 | M21: 6.184742782 | N21: 13
A22: EAGYPP@PIRMSA | B22: Eagle Pass, TX MicroSA ($) | C22: Eagle Pass | D22: TX | E22: Border | F22: 32061 | G22: 35133 | H22: 59494 | I22: 9.581734818 | J22: 59.05301375 | K22: 32456.53149 | L22: 35133 | M22: 8.246317113 | N22: 59
A23: ECPYPP@PIRMSA | B23: El Campo, TX MicroSA ($) | C23: El Campo | D23: TX | F23: 46427 | G23: 48384 | H23: 59494 | I23: 4.215219592 | J23: 81.32584798 | K23: 46999.76256 | L23: 48384 | M23: 2.94520092 | N23: 20
A24: ELPYPP@PIRMSA | B24: El Paso, TX ($) | C24: El Paso | D24: TX | E24: Border | F24: 38681 | G24: 41732 | H24: 59494 | I24: 7.887593392 | J24: 70.14488856 | K24: 39158.20138 | L24: 41732 | M24: 6.57282134 | N24: 50
A25: FKGYPP@PIRMSA | B25: Fredericksburg, TX MicroSA ($) | C25: Fredericksburg | D25: TX | F25: 66866 | G25: 68885 | H25: 59494 | I25: 3.019471779 | J25: 115.784785 | K25: 67690.91527 | L25: 68885 | M25: 1.764025087 | N25: 1
A26: GSVYPP@PIRMSA | B26: Gainesville, TX MicroSA ($) | C26: Gainesville | D26: TX | F26: 52968 | G26: 54759 | H26: 59494 | I26: 3.381286815 | J26: 92.04121424 | K26: 53621.45784 | L26: 54759 | M26: 2.121430863 | N26: 9
A27: HERYPP@PIRMSA | B27: Hereford, TX MicroSA ($) | C27: Hereford | D27: TX | F27: 51218 | G27: 54950 | H27: 59494 | I27: 7.28650084 | J27: 92.36225502 | K27: 51849.86837 | L27: 54950 | M27: 5.979054001 | N27: 8
A28: HTNYPP@PIRMSA | B28: Houston–The Woodlands–Sugar Land, TX ($) | C28: Houston–The Woodlands–Sugar Land | D28: TX | F28: 58884 | G28: 59893 | H28: 59494 | I28: 1.713538482 | J28: 100.6706559 | K28: 59610.4426 | L28: 59893 | M28: 0.4740065446 | N28: 4
A29: HUVYPP@PIRMSA | B29: Huntsville, TX MicroSA ($) | C29: Huntsville | D29: TX | F29: 31115 | G29: 32334 | H29: 59494 | I29: 3.91772457 | J29: 54.34833765 | K29: 31498.86084 | L29: 32334 | M29: 2.651331321 | N29: 61
A30: JXTYPP@PIRMSA | B30: Jacksonville, TX MicroSA ($) | C30: Jacksonville | D30: TX | F30: 35533 | G30: 38190 | H30: 59494 | I30: 7.477556075 | J30: 64.19134703 | K30: 35971.365 | L30: 38190 | M30: 6.167780942 | N30: 57
A31: KERYPP@PIRMSA | B31: Kerrville, TX MicroSA ($) | C31: Kerrville | D31: TX | F31: 54523 | G31: 56093 | H31: 59494 | I31: 2.879518735 | J31: 94.28345716 | K31: 55195.64163 | L31: 56093 | M31: 1.62577758 | N31: 7
A32: KGVYPP@PIRMSA | B32: Kingsville, TX MicroSA ($) | C32: Kingsville | D32: TX | F32: 41475 | G32: 43594 | H32: 59494 | I32: 5.109101869 | J32: 73.27461593 | K32: 41986.67052 | L32: 43594 | M32: 3.828189901 | N32: 44
A33: KILYPP@PIRMSA | B33: Killeen-Temple, TX ($) | C33: Killeen–Temple | D33: TX | F33: 43033 | G33: 45574 | H33: 59494 | I33: 5.904770757 | J33: 76.60268262 | K33: 43563.89132 | L33: 45574 | M33: 4.614162371 | N33: 33
A34: LAMYPP@PIRMSA | B34: Lamesa, TX MicroSA ($) | C34: Lamesa | D34: TX | F34: 40148 | G34: 42595 | H34: 59494 | I34: 6.09494869 | J34: 71.595455 | K34: 40643.29953 | L34: 42595 | M34: 4.802022701 | N34: 48
A35: LBKYPP@PIRMSA | B35: Lubbock, TX ($) | C35: Lubbock | D35: TX | F35: 44706 | G35: 46297 | H35: 59494 | I35: 3.558806424 | J35: 77.81793122 | K35: 45257.53086 | L35: 46297 | M35: 2.29678713 | N35: 30
A36: LEOYPP@PIRMSA | B36: Laredo, TX ($) | C36: Laredo | D36: TX | E36: Border | F36: 33305 | G36: 35626 | H36: 59494 | I36: 6.968923585 | J36: 59.88166874 | K36: 33715.87852 | L36: 35626 | M36: 5.665346902 | N36: 58
A37: LGMYPP@PIRMSA | B37: Longview, TX ($) | C37: Longview | D37: TX | F37: 43575 | G37: 45075 | H37: 59494 | I37: 3.442340792 | J37: 75.76394258 | K37: 44112.57789 | L37: 45075 | M37: 2.181740806 | N37: 40
A38: LUFYPP@PIRMSA | B38: Lufkin, TX MicroSA ($) | C38: Lufkin | D38: TX | F38: 40074 | G38: 42536 | H38: 59494 | I38: 6.143634277 | J38: 71.49628534 | K38: 40568.3866 | L38: 42536 | M38: 4.850114981 | N38: 49
A39: LVLYPP@PIRMSA | B39: Levelland, TX MicroSA ($) | C39: Levelland | D39: TX | F39: 43215 | G39: 46051 | H39: 59494 | I39: 6.562536156 | J39: 77.40444415 | K39: 43748.13662 | L39: 46051 | M39: 5.263911913 | N39: 31
A40: MCLYPP@PIRMSA | B40: McAllen–Edinburg–Mission, TX ($) | C40: McAllen–Edinburg–Mission | D40: TX | E40: Border | F40: 28091 | G40: 31153 | H40: 59494 | I40: 10.90028835 | J40: 52.36326352 | K40: 28437.55423 | L40: 31153 | M40: 9.548802092 | N40: 65
A41: MDTYPP@PIRMSA | B41: Midland, TX ($) | C41: Midland | D41: TX | R41: Data for Midland: remove from chart, outlier | U41: 135900 | V41: 124667 | W41: 59494 | X41: =(V41/U41-1)*100 -> -8.265636497 | Y41: =V41/W41*100 -> 209.5455004 | Z41: =U41/$S$2 -> 137576.5768 | AA41: =V41/$S$3 -> 124667 | AB41: =(AA41/Z41-1)*100 -> -9.383557229 | AC41: =RANK(Y41,$J$2:$J$69) -> 
A42: MSTYPP@PIRMSA | B42: Marshall, TX MicroSA DISC($) | C42: Marshall | D42: TX
A43: MTTYPP@PIRMSA | B43: Mount Pleasant, TX MicroSA ($) | C43: Mount Pleasant | D43: TX | F43: 37852 | G43: 40942 | H43: 59494 | I43: =(G43/F43-1)*100 -> 8.163373137 | J43: =G43/H43*100 -> 68.81702357 | K43: =F43/$S$2 -> 38318.97414 | L43: =G43/$S$3 -> 40942 | M43: =(L43/K43-1)*100 -> 6.845240296 | N43: =RANK(J43,$J$2:$J$69) -> 54
A44: MWLYPP@PIRMSA | B44: Mineral Wells, TX MicroSA ($) | C44: Mineral Wells | D44: TX | F44: 42930 | G44: 45095 | H44: 59494 | I44: 5.043093408 | J44: 75.79755942 | K44: 43459.62062 | L44: 45095 | M44: 3.762985852 | N44: 39
A45: NCDYPP@PIRMSA | B45: Nacogdoches, TX MicroSA ($) | C45: Nacogdoches | D45: TX | F45: 39299 | G45: 41188 | H45: 59494 | I45: 4.806738085 | J45: 69.23051064 | K45: 39783.82555 | L45: 41188 | M45: 3.529510873 | N45: 52
A46: ODEYPP@PIRMSA | B46: Odessa, TX ($) | C46: Odessa | D46: TX | F46: 52079 | G46: 49887 | H46: 59494 | I46: -4.208990188 | J46: 83.85215316 | K46: 52721.49039 | L46: 49887 | M46: -5.376347236 | N46: 18
A47: PALYPP@PIRMSA | B47: Palestine, TX MicroSA ($) | C47: Palestine | D47: TX | F47: 36332 | G47: 38807 | H47: 59494 | I47: 6.812176594 | J47: 65.2284264 | K47: 36780.22214 | L47: 38807 | M47: 5.510510107 | N47: 55
A48: PAXYPP@PIRMSA | B48: Paris, TX MicroSA ($) | C48: Paris | D48: TX | F48: 43579 | G48: 46538 | H48: 59494 | I48: 6.789967645 | J48: 78.22301409 | K48: 44116.62723 | L48: 46538 | M48: 5.488571808 | N48: 29
A49: PCSYPP@PIRMSA | B49: Pecos, TX MicroSA ($) | C49: Pecos | D49: TX | F49: 46879 | G49: 44286 | H49: 59494 | I49: -5.531261332 | J49: 74.43775843 | K49: 47457.33881 | L49: 44286 | M49: -6.682504524 | N49: 41
A50: PLAYPP@PIRMSA | B50: Port Lavaca, TX MicroSA ($) | C50: Port Lavaca | D50: TX | F50: 53562 | G50: 52180 | H50: 59494 | I50: -2.580187446 | J50: 87.70632333 | K50: 54222.78593 | L50: 52180 | M50: -3.767393897 | N50: 12
A51: PLNYPP@PIRMSA | B51: Plainview, TX MicroSA ($) | C51: Plainview | D51: TX | F51: 36389 | G51: 38674 | H51: 59494 | I51: 6.279370139 | J51: 65.00487444 | K51: 36837.92534 | L51: 38674 | M51: 4.984196698 | N51: 56
A52: PMPYPP@PIRMSA | B52: Pampa, TX MicroSA ($) | C52: Pampa | D52: TX | F52: 44311 | G52: 45370 | H52: 59494 | I52: 2.389925752 | J52: 76.2597909 | K52: 44857.6578 | L52: 45370 | M52: 1.142151021 | N52: 35
A53: RAYYPP@PIRMSA | B53: Raymondville, TX MicroSA ($) | C53: Raymondville | D53: TX | F53: 28083 | G53: 31710 | H53: 59494 | I53: 12.91528683 | J53: 53.29949239 | K53: 28429.45553 | L53: 31710 | M53: 11.5392448 | N53: 64
A54: RIOYPP@PIRMSA | B54: Rio Grande City–Roma, TX MicroSA($) | C54: Rio Grande City–Roma | D54: TX | E54: Border | F54: 27922 | G54: 32146 | H54: 59494 | I54: 15.12785617 | J54: 54.0323394 | K54: 28266.4693 | L54: 32146 | M54: 13.72485066 | N54: 62
A55: SATYPP@PIRMSA | B55: San Antonio-New Braunfels, TX ($) | C55: San Antonio-New Braunfels | D55: TX | F55: 48025 | G55: 50022 | H55: 59494 | I55: 4.158250911 | J55: 84.0790668 | K55: 48617.47683 | L55: 50022 | M55: 2.888926487 | N55: 16
A56: SHMYPP@PIRMSA | B56: Sherman–Denison, TX ($) | C56: Sherman–Denison | D56: TX | F56: 44585 | G56: 47045 | H56: 59494 | I56: 5.517550746 | J56: 79.07520086 | K56: 45135.0381 | L56: 47045 | M56: 4.231661216 | N56: 26
A57: SNAYPP@PIRMSA | B57: San Angelo, TX ($) | C57: San Angelo | D57: TX | F57: 51990 | G57: 53305 | H57: 59494 | I57: 2.529332564 | J57: 89.59727031 | K57: 52631.39241 | L57: 53305 | M57: 1.279858952 | N57: 11
A58: SNYYPP@PIRMSA | B58: Snyder, TX MicroSA ($) | C58: Snyder | D58: TX | F58: 45708 | G58: 47272 | H58: 59494 | I58: 3.421720487 | J58: 79.45675194 | K58: 46271.89237 | L58: 47272 | M58: 2.16137179 | N58: 25
A59: STPYPP@PIRMSA | B59: Stephenville, TX MicroSA ($) | C59: Stephenville | D59: TX | F59: 41866 | G59: 43900 | H59: 59494 | I59: 4.858357617 | J59: 73.78895351 | K59: 42382.49422 | L59: 43900 | M59: 3.580501344 | N59: 43
A60: SULYPP@PIRMSA | B60: Sulphur Springs, TX MicroSA ($) | C60: Sulphur Springs | D60: TX | F60: 42690 | G60: 45219 | H60: 59494 | I60: 5.924104006 | J60: 76.0059838 | K60: 43216.65978 | L60: 45219 | M60: 4.633260015 | N60: 37
A61: SWEYPP@PIRMSA | B61: Sweetwater, TX MicroSA ($) | C61: Sweetwater | D61: TX | F61: 45578 | G61: 48017 | H61: 59494 | I61: 5.351265962 | J61: 80.70897906 | K61: 46140.28858 | L61: 48017 | M61: 4.067402861 | N61: 23
A62: TEXYPP@PIRMSA | B62: Texarkana, TX-AR ($) | C62: Texarkana | D62: TX | F62: 38802 | G62: 41516 | H62: 59494 | I62: 6.99448482 | J62: 69.78182674 | K62: 39280.69414 | L62: 41516 | M62: 5.690596635 | N62: 51
A63: TYLYPP@PIRMSA | B63: Tyler, TX ($) | C63: Tyler | D63: TX | F63: 55986 | G63: 57076 | H63: 59494 | I63: 1.9469153 | J63: 95.93572461 | K63: 56676.69043 | L63: 57076 | M63: 0.704539316 | N63: 6
A64: UVAYPP@PIRMSA | B64: Uvalde, TX MicroSA ($) | C64: Uvalde | D64: TX | F64: 42217 | G64: 45255 | H64: 59494 | I64: 7.196153208 | J64: 76.0664941 | K64: 42737.82446 | L64: 45255 | M64: 5.889807392 | N64: 36
A65: VERYPP@PIRMSA | B65: Vernon, TX MicroSA ($) | C65: Vernon | D65: TX | F65: 50096 | G65: 49537 | H65: 59494 | I65: -1.115857553 | J65: 83.26385854 | K65: 50714.02643 | L65: 49537 | M65: -2.320909059 | N65: 19
A66: VICYPP@PIRMSA | B66: Victoria, TX ($) | C66: Victoria | D66: TX | F66: 52268 | G66: 53547 | H66: 59494 | I66: 2.447003903 | J66: 90.00403402 | K66: 52912.82205 | L66: 53547 | M66: 1.198533589 | N66: 10
A67: WACYPP@PIRMSA | B67: Waco, TX ($) | C67: Waco | D67: TX | F67: 42274 | G67: 45403 | H67: 59494 | I67: 7.401712637 | J67: 76.31525868 | K67: 42795.52766 | L67: 45403 | M67: 6.09286177 | N67: 34
A68: WIFYPP@PIRMSA | B68: Wichita Falls, TX ($) | C68: Wichita Falls | D68: TX | F68: 44754 | G68: 46954 | H68: 59494 | I68: 4.91576172 | J68: 78.92224426 | K68: 45306.12302 | L68: 46954 | M68: 3.637205891 | N68: 27
A69: ZAPYPP@PIRMSA | B69: Zapata, TX MicroSA ($) | C69: Zapata | D69: TX | E69: Border | F69: 29004 | G69: 28981 | H69: 59494 | I69: -0.07929940698 | J69: 48.71247521 | K69: 29361.81776 | L69: 28981 | M69: -1.296982928 | N69: 66

Sheet Data2
D2: Brownsville | E2: El Paso | F2: Laredo | G2: McAllen | H2: Texas | I2: Border
C3: 201901 *M | D3: agg(bronaga@dalempn,eop) | E3: agg(elpnaga@dalempn,eop) | F3: agg(larnaga@dalempn,eop) | G3: agg(mcanaga@dalempn,eop) | H3: agg(TXLNAGRA@DALEMPN,eop)
A4: =IF(RIGHT(C4,2)="07",LEFT(C4,4),"") ->  | B4: 2019-01-01 | C4: 201901 | D4: 142.782 | E4: 321.439 | F4: 106.915 | G4: 267.068 | H4: 12683.163 | I4: =SUM(Data2!$D4:$G4) -> 838.204
A5: =IF(RIGHT(C5,2)="07",LEFT(C5,4),"") ->  | B5: 2019-02-01 | C5: 201902 | D5: 143.221 | E5: 322.317 | F5: 107.175 | G5: 267.997 | H5: 12720.544 | I5: =SUM(Data2!$D5:$G5) -> 840.71
B6: 2019-03-01 | C6: 201903 | D6: 143.024 | E6: 322.877 | F6: 107.214 | G6: 268.517 | H6: 12727.602 | I6: =SUM(Data2!$D6:$G6) -> 841.632
B7: 2019-04-01 | C7: 201904 | D7: 143.703 | E7: 323.379 | F7: 107.798 | G7: 268.97 | H7: 12753.967 | I7: =SUM(Data2!$D7:$G7) -> 843.85
B8: 2019-05-01 | C8: 201905 | D8: 144.208 | E8: 323.7 | F8: 108.174 | G8: 269.064 | H8: 12773.721 | I8: =SUM(Data2!$D8:$G8) -> 845.146
B9: 2019-06-01 | C9: 201906 | D9: 144.546 | E9: 324.254 | F9: 108.334 | G9: 270.25 | H9: 12788.758 | I9: =SUM(Data2!$D9:$G9) -> 847.384
A10: =IF(RIGHT(C10,2)="07",LEFT(C10,4),"") -> 2019 | B10: 2019-07-01 | C10: 201907 | D10: 145.276 | E10: 325.789 | F10: 107.963 | G10: 271.765 | H10: 12834.4 | I10: =SUM(Data2!$D10:$G10) -> 850.793
A11: =IF(RIGHT(C11,2)="07",LEFT(C11,4),"") ->  | B11: 2019-08-01 | C11: 201908 | D11: 145.751 | E11: 326.117 | F11: 108.448 | G11: 273.63 | H11: 12860.51 | I11: =SUM(Data2!$D11:$G11) -> 853.946
B12: 2019-09-01 | C12: 201909 | D12: 145.986 | E12: 326.434 | F12: 108.366 | G12: 273.807 | H12: 12872.98 | I12: =SUM(Data2!$D12:$G12) -> 854.593
B13: 2019-10-01 | C13: 201910 | D13: 145.468 | E13: 326.967 | F13: 108.47 | G13: 272.82 | H13: 12891.692 | I13: =SUM(Data2!$D13:$G13) -> 853.725
B14: 2019-11-01 | C14: 201911 | D14: 146.063 | E14: 327.648 | F14: 108.529 | G14: 273.083 | H14: 12926.609 | I14: =SUM(Data2!$D14:$G14) -> 855.323
B15: 2019-12-01 | C15: 201912 | D15: 146.167 | E15: 327.421 | F15: 108.396 | G15: 273.225 | H15: 12924.977 | I15: =SUM(Data2!$D15:$G15) -> 855.209
B16: 2020-01-01 | C16: 202001 | D16: 147.019 | E16: 326.809 | F16: 108.684 | G16: 274.061 | H16: 12964.997 | I16: =SUM(Data2!$D16:$G16) -> 856.573
B17: 2020-02-01 | C17: 202002 | D17: 146.906 | E17: 327.05 | F17: 108.442 | G17: 274.798 | H17: 12982.427 | I17: =SUM(Data2!$D17:$G17) -> 857.196
B18: 2020-03-01 | C18: 202003 | D18: 146.604 | E18: 326.942 | F18: 107.724 | G18: 274.167 | H18: 12907.619 | I18: =SUM(Data2!$D18:$G18) -> 855.437
B19: 2020-04-01 | C19: 202004 | D19: 130.634 | E19: 290.35 | F19: 94.6 | G19: 245.555 | H19: 11527.323 | I19: =SUM(Data2!$D19:$G19) -> 761.139
B20: 2020-05-01 | C20: 202005 | D20: 135.496 | E20: 297.073 | F20: 96.551 | G20: 252.818 | H20: 11757.683 | I20: =SUM(Data2!$D20:$G20) -> 781.938
B21: 2020-06-01 | C21: 202006 | D21: 139.45 | E21: 307.739 | F21: 98.711 | G21: 260.553 | H21: 11973.718 | I21: =SUM(Data2!$D21:$G21) -> 806.453
A22: 2020 | B22: 2020-07-01 | C22: 202007 | D22: 137.685 | E22: 310.688 | F22: 99.257 | G22: 261.69 | H22: 12005.515 | I22: =SUM(Data2!$D22:$G22) -> 809.32
B23: 2020-08-01 | C23: 202008 | D23: 140.117 | E23: 311.749 | F23: 98.843 | G23: 260.67 | H23: 12082.522 | I23: =SUM(Data2!$D23:$G23) -> 811.379
B24: 2020-09-01 | C24: 202009 | D24: 139.979 | E24: 310.84 | F24: 98.975 | G24: 262.363 | H24: 12142.75 | I24: =SUM(Data2!$D24:$G24) -> 812.157
B25: 2020-10-01 | C25: 202010 | D25: 141.148 | E25: 310.974 | F25: 99.169 | G25: 261.12 | H25: 12254.238 | I25: =SUM(Data2!$D25:$G25) -> 812.411
B26: 2020-11-01 | C26: 202011 | D26: 141.697 | E26: 308.766 | F26: 99.092 | G26: 261.832 | H26: 12291.218 | I26: =SUM(Data2!$D26:$G26) -> 811.387
B27: 2020-12-01 | C27: 202012 | D27: 141.959 | E27: 310.749 | F27: 99.495 | G27: 262.664 | H27: 12338.701 | I27: =SUM(Data2!$D27:$G27) -> 814.867
B28: 2021-01-01 | C28: 202101 | D28: 144.371 | E28: 311.861 | F28: 99.081 | G28: 263.326 | H28: 12382.394 | I28: =SUM(Data2!$D28:$G28) -> 818.639
B29: 2021-02-01 | C29: 202102 | D29: 144.025 | E29: 312.193 | F29: 98.908 | G29: 262.962 | H29: 12342.183 | I29: =SUM(Data2!$D29:$G29) -> 818.088
B30: 2021-03-01 | C30: 202103 | D30: 144.54 | E30: 314.548 | F30: 99.515 | G30: 263.962 | H30: 12465.535 | I30: =SUM(Data2!$D30:$G30) -> 822.565
B31: 2021-04-01 | C31: 202104 | D31: 145.7 | E31: 313.95 | F31: 100.512 | G31: 267.642 | H31: 12516.949 | I31: =SUM(Data2!$D31:$G31) -> 827.804
B32: 2021-05-01 | C32: 202105 | D32: 146.42 | E32: 315.748 | F32: 100.951 | G32: 268.613 | H32: 12553.105 | I32: =SUM(Data2!$D32:$G32) -> 831.732
B33: 2021-06-01 | C33: 202106 | D33: 146.875 | E33: 317.178 | F33: 101.244 | G33: 269.619 | H33: 12590.351 | I33: =SUM(Data2!$D33:$G33) -> 834.916
A34: 2021 | B34: 2021-07-01 | C34: 202107 | D34: 147.245 | E34: 319.581 | F34: 101.749 | G34: 274.959 | H34: 12689.616 | I34: =SUM(Data2!$D34:$G34) -> 843.534
B35: 2021-08-01 | C35: 202108 | D35: 148.087 | E35: 319.48 | F35: 102.209 | G35: 276.117 | H35: 12721.148 | I35: =SUM(Data2!$D35:$G35) -> 845.893
B36: 2021-09-01 | C36: 202109 | D36: 148.596 | E36: 320.165 | F36: 101.935 | G36: 277.357 | H36: 12805.096 | I36: =SUM(Data2!$D36:$G36) -> 848.053
B37: 2021-10-01 | C37: 202110 | D37: 148.668 | E37: 320.892 | F37: 102.07 | G37: 277.712 | H37: 12851.782 | I37: =SUM(Data2!$D37:$G37) -> 849.342
B38: 2021-11-01 | C38: 202111 | D38: 149.014 | E38: 321.563 | F38: 102.465 | G38: 278.973 | H38: 12933.002 | I38: =SUM(Data2!$D38:$G38) -> 852.015
B39: 2021-12-01 | C39: 202112 | D39: 149.465 | E39: 320.81 | F39: 102.749 | G39: 279.392 | H39: 12965.768 | I39: =SUM(Data2!$D39:$G39) -> 852.416 | M39: MSA

Sheet Data3
J1: 0.3763537991 | K1: 0.1753427904 | L1: 0.1205385633 | M1: 0.3277648472
D2: Thousands of dollars | J2: 1 | K2: 1 | L2: 1 | M2: 1 | O2: BORDER | S2: TEXAS
B3: 20061 20214 | C3: pcu@usecon | D3: txrsales@dalfed | E3: ELPRET@DALFED | F3: BRORET@DALFED | G3: LARRET@DALFED | H3: MCARET@DALFED | J3: elpaso | K3: bro | L3: lar | M3: mca | O3: Quarterly | P3: Border MSAs | Q3: YoY Growth | S3: Price index | T3: Real quarterly | U3: Annual | Y3: recessm@usecon | Z3: Texas | AA3: Border
B4: 20061 | C4: 199.4666667 | D4: 87652538 | E4: 3018.83 | F4: 1204.07 | G4: 1121.23 | H4: 2559.06 | J4: =E4*$J$2 -> 3018.83 | K4: =F4*$K$2 -> 1204.07 | L4: =G4*$L$2 -> 1121.23 | M4: =H4*$M$2 -> 2559.06 | O4: =SUM(J4:M4) -> 7903.19 | S4: =C4/$C$66 -> 0.7302102527 | T4: =D4/S4 -> 120037397 | W4: =IF(RIGHT(X4,3)="Jul",LEFT(X4,4),"") ->  | X4: 2006 - Jan | Y4: 0
B5: 20062 | C5: 201.2666667 | D5: 89116312 | E5: 3017.73 | F5: 1233.05 | G5: 1131.13 | H5: 2644.38 | J5: =E5*$J$2 -> 3017.73 | K5: =F5*$K$2 -> 1233.05 | L5: =G5*$L$2 -> 1131.13 | M5: =H5*$M$2 -> 2644.38 | O5: =SUM(J5:M5) -> 8026.29 | S5: =C5/$C$66 -> 0.7367997169 | T5: =D5/S5 -> 120950524.2 | W5: =IF(RIGHT(X5,3)="Jul",LEFT(X5,4),"") ->  | X5: 2006 - Feb | Y5: 0
A6: 2006 | B6: 20063 | C6: 203.1666667 | D6: 90486531 | E6: 2993.84 | F6: 1256.63 | G6: 1136.75 | H6: 2617.32 | J6: 2993.84 | K6: 1256.63 | L6: 1136.75 | M6: 2617.32 | O6: 8004.54 | S6: 0.7437552624 | T6: 121661701.9 | X6: 2006 - Mar | Y6: 0
B7: 20064 | C7: 202.3333333 | D7: 91856268 | E7: 3047.67 | F7: 1291.74 | G7: 1167.16 | H7: 2761.73 | J7: 3047.67 | K7: 1291.74 | L7: 1167.16 | M7: 2761.73 | O7: 8268.3 | P7: =SUM(O4:O7)*1000 -> 32202320 | S7: 0.7407045846 | T7: 124012014.9 | U7: =SUM(T4:T7) -> 486661638 | X7: 2006 - Apr | Y7: 0
B8: 20071 | C8: 204.317 | D8: 93988290 | E8: 3102.53 | F8: 1258.47 | G8: 1177.54 | H8: 2838.18 | J8: 3102.53 | K8: 1258.47 | L8: 1177.54 | M8: 2838.18 | O8: 8376.72 | S8: 0.7479664181 | T8: 125658435.6 | X8: 2006 - May | Y8: 0
B9: 20072 | C9: 206.631 | D9: 95388851 | E9: 3052.36 | F9: 1258.93 | G9: 1164.37 | H9: 2809.18 | J9: 3052.36 | K9: 1258.93 | L9: 1164.37 | M9: 2809.18 | O9: 8284.84 | S9: 0.7564375404 | T9: 126102746 | X9: 2006 - Jun | Y9: 0
A10: 2007 | B10: 20073 | C10: 207.939 | D10: 93199531 | E10: 3036.44 | F10: 1263.08 | G10: 1166.72 | H10: 2869.47 | J10: 3036.44 | K10: 1263.08 | L10: 1166.72 | M10: 2869.47 | O10: 8335.71 | S10: 0.7612258844 | T10: 122433475.9 | W10: 2006 | X10: 2006 - Jul | Y10: 0 | Z10: =U7 -> 486661638 | AA10: =P7 -> 32202320
B11: 20074 | C11: 210.4896667 | D11: 95493731 | E11: 3095.65 | F11: 1427.36 | G11: 1167.06 | H11: 2941.01 | J11: 3095.65 | K11: 1427.36 | L11: 1167.06 | M11: 2941.01 | O11: 8631.08 | P11: =SUM(O8:O11)*1000 -> 33628350 | Q11: =(P11/P7-1)*100 -> 4.428345535 | S11: 0.7705633992 | T11: 123927156.5 | U11: =SUM(T8:T11) -> 498121814.1 | X11: 2006 - Aug | Y11: 0
B12: 20081 | C12: 212.7696667 | D12: 102192228 | E12: 3183 | F12: 1264.94 | G12: 1181.54 | H12: 2927.47 | J12: 3183 | K12: 1264.94 | L12: 1181.54 | M12: 2927.47 | O12: 8556.95 | S12: 0.7789100538 | T12: 131199010.1 | X12: 2006 - Sep | Y12: 0
B13: 20082 | C13: 215.5376667 | D13: 103131544 | E13: 3125.8 | F13: 1256.76 | G13: 1173.38 | H13: 2893.68 | J13: 3125.8 | K13: 1256.76 | L13: 1173.38 | M13: 2893.68 | O13: 8449.62 | S13: 0.7890431854 | T13: 130704562.1 | X13: 2006 - Oct | Y13: 0
A14: 2008 | B14: 20083 | C14: 218.861 | D14: 110799840 | E14: 3087.5 | F14: 1255.9 | G14: 1147.26 | H14: 2864.42 | J14: 3087.5 | K14: 1255.9 | L14: 1147.26 | M14: 2864.42 | O14: 8355.08 | S14: 0.8012092887 | T14: 138290758.2 | X14: 2006 - Nov | Y14: 0
B15: 20084 | C15: 213.8486667 | D15: 100834844 | E15: 2842.8 | F15: 1276.93 | G15: 1065.52 | H15: 2724.04 | J15: 2842.8 | K15: 1276.93 | L15: 1065.52 | M15: 2724.04 | O15: 7909.29 | P15: =SUM(O12:O15)*1000 -> 33270940 | Q15: =(P15/P11-1)*100 -> -1.062823481 | S15: 0.7828600715 | T15: 128803151 | U15: =SUM(T12:T15) -> 528997481.3 | X15: 2006 - Dec | Y15: 0
B16: 20091 | C16: 212.3776667 | D16: 90639316 | E16: 2704.08 | F16: 1182.79 | G16: 953.77 | H16: 2569.72 | J16: 2704.08 | K16: 1182.79 | L16: 953.77 | M16: 2569.72 | O16: 7410.36 | S16: 0.7774750149 | T16: 116581644.8 | X16: 2007 - Jan | Y16: 0
B17: 20092 | C17: 213.507 | D17: 90892453 | E17: 2725.86 | F17: 1208.49 | G17: 970.12 | H17: 2635.74 | J17: 2725.86 | K17: 1208.49 | L17: 970.12 | M17: 2635.74 | O17: 7540.21 | S17: 0.7816092936 | T17: 116288859.1 | X17: 2007 - Feb | Y17: 0
A18: 2009 | B18: 20093 | C18: 215.344 | D18: 93936055 | E18: 2788.38 | F18: 1197.24 | G18: 981.89 | H18: 2640.38 | J18: 2788.38 | K18: 1197.24 | L18: 981.89 | M18: 2640.38 | O18: 7607.89 | S18: 0.7883342079 | T18: 119157654.3 | X18: 2007 - Mar | Y18: 0
B19: 20094 | C19: 217.03 | D19: 95530963 | E19: 2874.74 | F19: 1212.14 | G19: 1016.58 | H19: 2810.12 | J19: 2874.74 | K19: 1212.14 | L19: 1016.58 | M19: 2810.12 | O19: 7913.58 | P19: =SUM(O16:O19)*1000 -> 30472040 | Q19: =(P19/P15-1)*100 -> -8.412446417 | S19: 0.7945063393 | T19: 120239396.8 | U19: =SUM(T16:T19) -> 472267554.9 | X19: 2007 - Apr | Y19: 0
B20: 20101 | C20: 217.374 | D20: 93379528 | E20: 2939.02 | F20: 1217.35 | G20: 1029.52 | H20: 2744.37 | J20: 2939.02 | K20: 1217.35 | L20: 1029.52 | M20: 2744.37 | O20: 7930.26 | S20: 0.7957656591 | T20: 117345511.1 | X20: 2007 - May | Y20: 0
B21: 20102 | C21: 217.2973333 | D21: 93646153 | E21: 3032.23 | F21: 1239.29 | G21: 1045.76 | H21: 2741.41 | J21: 3032.23 | K21: 1239.29 | L21: 1045.76 | M21: 2741.41 | O21: 8058.69 | S21: 0.7954849968 | T21: 117722085.7 | X21: 2007 - Jun | Y21: 0
A22: 2010 | B22: 20103 | C22: 217.9343333 | D22: 95414144 | E22: 3028.04 | F22: 1258.9 | G22: 1054.18 | H22: 2805.05 | J22: 3028.04 | K22: 1258.9 | L22: 1054.18 | M22: 2805.05 | O22: 8146.17 | S22: 0.7978169349 | T22: 119594031.9 | W22: 2007 | X22: 2007 - Jul | Y22: 0 | Z22: =U11 -> 498121814.1 | AA22: =P11 -> 33628350
B23: 20104 | C23: 219.699 | D23: 98087230 | E23: 3061.27 | F23: 1260.42 | G23: 1154.86 | H23: 2814.37 | J23: 3061.27 | K23: 1260.42 | L23: 1154.86 | M23: 2814.37 | O23: 8290.92 | P23: =SUM(O20:O23)*1000 -> 32426040 | Q23: =(P23/P19-1)*100 -> 6.412435794 | S23: 0.8042770504 | T23: 121957017.1 | U23: =SUM(T20:T23) -> 476618645.9 | X23: 2007 - Aug | Y23: 0
B24: 20111 | C24: 222.0436667 | D24: 99768904 | E24: 3083.68 | F24: 1319.8 | G24: 1149.45 | H24: 2916.03 | J24: 3083.68 | K24: 1319.8 | L24: 1149.45 | M24: 2916.03 | O24: 8468.96 | S24: 0.8128604376 | T24: 122738048.7 | X24: 2007 - Sep | Y24: 0
B25: 20112 | C25: 224.5683333 | D25: 102418386 | E25: 3090.74 | F25: 1331.42 | G25: 1147.72 | H25: 2900.91 | J25: 3090.74 | K25: 1331.42 | L25: 1147.72 | M25: 2900.91 | O25: 8470.79 | S25: 0.8221027712 | T25: 124581000.8 | X25: 2007 - Oct | Y25: 0
A26: 2011 | B26: 20113 | C26: 226.0326667 | D26: 103773916 | E26: 3143.41 | F26: 1299.07 | G26: 1128.78 | H26: 2919.69 | J26: 3143.41 | K26: 1299.07 | L26: 1128.78 | M26: 2919.69 | O26: 8490.95 | S26: 0.8274634224 | T26: 125412088.6 | X26: 2007 - Nov | Y26: 0
B27: 20114 | C27: 227.0473333 | D27: 105851825 | E27: 3144 | F27: 1325.9 | G27: 1117.98 | H27: 3015.23 | J27: 3144 | K27: 1325.9 | L27: 1117.98 | M27: 3015.23 | O27: 8603.11 | P27: =SUM(O24:O27)*1000 -> 34033810 | Q27: =(P27/P23-1)*100 -> 4.958268108 | S27: 0.8311779277 | T27: 127351583.2 | U27: =SUM(T24:T27) -> 500082721.3 | X27: 2007 - Dec | Y27: 1e+16
B28: 20121 | C28: 228.326 | D28: 107640533 | E28: 3222.34 | F28: 1327.87 | G28: 1179.68 | H28: 3048.7 | J28: 3222.34 | K28: 1327.87 | L28: 1179.68 | M28: 3048.7 | O28: 8778.59 | S28: 0.8358588878 | T28: 128778355.5 | X28: 2008 - Jan | Y28: 1e+16
B29: 20122 | C29: 228.808 | D29: 108037323 | E29: 3197.71 | F29: 1330.5 | G29: 1154 | H29: 3093.61 | J29: 3197.71 | K29: 1330.5 | L29: 1154 | M29: 3093.61 | O29: 8775.82 | S29: 0.8376233999 | T29: 128980784.2 | X29: 2008 - Feb | Y29: 1e+16
A30: 2012 | B30: 20123 | C30: 229.841 | D30: 110189656 | E30: 3219.18 | F30: 1387.3 | G30: 1166.51 | H30: 3034.17 | J30: 3219.18 | K30: 1387.3 | L30: 1166.51 | M30: 3034.17 | O30: 8807.16 | S30: 0.8414050202 | T30: 130959114 | X30: 2008 - Mar | Y30: 1e+16
B31: 20124 | C31: 231.3693333 | D31: 110604872 | E31: 3222.51 | F31: 1358.64 | G31: 1177.47 | H31: 3070.03 | J31: 3222.51 | K31: 1358.64 | L31: 1177.47 | M31: 3070.03 | O31: 8828.65 | P31: =SUM(O28:O31)*1000 -> 35190220 | Q31: =(P31/P27-1)*100 -> 3.397827043 | S31: 0.8469999634 | T31: 130584270.1 | U31: =SUM(T28:T31) -> 519302523.9 | X31: 2008 - Apr | Y31: 1e+16
B32: 20131 | C32: 232.2993333 | D32: 114200802 | E32: 3249.2 | F32: 1369.74 | G32: 1216.48 | H32: 3157.15 | J32: 3249.2 | K32: 1369.74 | L32: 1216.48 | M32: 3157.15 | O32: 8992.57 | S32: 0.8504045199 | T32: 134289975.3 | X32: 2008 - May | Y32: 1e+16
B33: 20132 | C33: 232.045 | D33: 115784163 | E33: 3202.39 | F33: 1312.69 | G33: 1190.25 | H33: 3129.55 | J33: 3202.39 | K33: 1312.69 | L33: 1190.25 | M33: 3129.55 | O33: 8834.88 | S33: 0.849473453 | T33: 136301096.4 | X33: 2008 - Jun | Y33: 1e+16
A34: 2013 | B34: 20133 | C34: 233.3 | D34: 110877203 | E34: 3222.31 | F34: 1369.95 | G34: 1186.28 | H34: 3127.9 | J34: 3222.31 | K34: 1369.95 | L34: 1186.28 | M34: 3127.9 | O34: 8906.44 | S34: 0.8540677739 | T34: 129822487.6 | W34: 2008 | X34: 2008 - Jul | Y34: 1e+16 | Z34: =U15 -> 528997481.3 | AA34: =P15 -> 33270940
B35: 20134 | C35: 234.1626667 | D35: 118613135 | E35: 3387.39 | F35: 1417.36 | G35: 1206.28 | H35: 3106.04 | J35: 3387.39 | K35: 1417.36 | L35: 1206.28 | M35: 3106.04 | O35: 9117.07 | P35: =SUM(O32:O35)*1000 -> 35850960 | Q35: =(P35/P31-1)*100 -> 1.877623953 | S35: 0.8572258356 | T35: 138368595.6 | U35: =SUM(T32:T35) -> 538782155 | X35: 2008 - Aug | Y35: 1e+16
B36: 20141 | C36: 235.621 | D36: 118816744 | E36: 3228.3 | F36: 1337.2 | G36: 1218.33 | H36: 3099.48 | J36: 3228.3 | K36: 1337.2 | L36: 1218.33 | M36: 3099.48 | O36: =SUM(J36:M36) -> 8883.31 | S36: 0.8625645218 | T36: 137748239.1 | X36: 2008 - Sep | Y36: 1e+16
B37: 20142 | C37: 236.8723333 | D37: 124469551 | E37: 3408.72 | F37: 1397.57 | G37: 1282.02 | H37: 3282.01 | J37: 3408.72 | K37: 1397.57 | L37: 1282.02 | M37: 3282.01 | O37: 9370.32 | S37: 0.8671454197 | T37: 143539420.5 | X37: 2008 - Oct | Y37: 1e+16
A38: 2014 | B38: 20143 | C38: 237.4783333 | D38: 126133905 | E38: 3333.79 | F38: 1380.46 | G38: 1298.61 | H38: 3247.34 | J38: 3333.79 | K38: 1380.46 | L38: 1298.61 | M38: 3247.34 | O38: 9260.2 | S38: 0.8693638727 | T38: 145087585.3 | X38: 2008 - Nov | Y38: 1e+16
B39: 20144 | C39: 236.8883333 | D39: 124875244 | E39: 3357.41 | F39: 1362.37 | G39: 1239.67 | H39: 3286.04 | J39: 3357.41 | K39: 1362.37 | L39: 1239.67 | M39: 3286.04 | O39: 9245.49 | P39: =SUM(O36:O39)*1000 -> 36759320 | Q39: =(P39/P35-1)*100 -> 2.533711789 | S39: 0.8672039927 | T39: 143997542.7 | U39: =SUM(T36:T39) -> 570372787.6 | X39: 2008 - Dec | Y39: 1e+16
B40: 20151 | C40: 235.355 | D40: 121200392 | E40: 3374.04 | F40: 1369.95 | G40: 1235.15 | H40: 3204.62 | J40: 3374.04 | K40: 1369.95 | L40: 1235.15 | M40: 3204.62 | O40: 9183.76 | S40: 0.8615907455 | T40: 140670489.6 | X40: 2009 - Jan | Y40: 1e+16
B41: 20152 | C41: 236.96 | D41: 121055759 | E41: 3352.88 | F41: 1399.77 | G41: 1232.93 | H41: 3164.32 | J41: 3352.88 | K41: 1399.77 | L41: 1232.93 | M41: 3164.32 | O41: 9149.9 | S41: 0.867466351 | T41: 139550956.5 | X41: 2009 - Feb | Y41: 1e+16
A42: 2015 | B42: 20153 | C42: 237.855 | D42: 122569888 | E42: 3348.48 | F42: 1400.32 | G42: 1191.62 | H42: 3201.17 | J42: 3348.48 | K42: 1400.32 | L42: 1191.62 | M42: 3201.17 | O42: 9141.59 | S42: 0.870742779 | T42: 140764748.2 | X42: 2009 - Mar | Y42: 1e+16
B43: 20154 | C43: 237.837 | D43: 122915178 | E43: 3248.43 | F43: 1413.72 | G43: 1204.19 | H43: 3194.65 | J43: 3248.43 | K43: 1413.72 | L43: 1204.19 | M43: 3194.65 | O43: 9060.99 | P43: =SUM(O40:O43)*1000 -> 36536240 | Q43: =(P43/P39-1)*100 -> -0.6068665035 | S43: 0.8706768844 | T43: 141171978 | U43: =SUM(T40:T43) -> 562158172.3 | X43: 2009 - Apr | Y43: 1e+16
B44: 20161 | C44: 237.6893333 | D44: 123037286 | E44: 3364.09 | F44: 1407.54 | G44: 1158.65 | H44: 3139.61 | J44: 3364.09 | K44: 1407.54 | L44: 1158.65 | M44: 3139.61 | O44: 9069.89 | S44: 0.8701363043 | T44: 141400014.5 | X44: 2009 - May | Y44: 1e+16
B45: 20162 | C45: 239.5903333 | D45: 120249342 | E45: 3335.67 | F45: 1410.01 | G45: 1117.64 | H45: 3132.87 | J45: 3335.67 | K45: 1410.01 | L45: 1117.64 | M45: 3132.87 | O45: 8996.19 | S45: 0.8770955106 | T45: 137099484.1 | X45: 2009 - Jun | Y45: 1e+16
A46: 2016 | B46: 20163 | C46: 240.6073333 | D46: 121195989 | E46: 3452.46 | F46: 1378 | G46: 1113.74 | H46: 3085.23 | J46: 3452.46 | K46: 1378 | L46: 1113.74 | M46: 3085.23 | O46: 9029.43 | S46: 0.8808185579 | T46: 137594727 | W46: 2009 | X46: 2009 - Jul | Y46: 0 | Z46: =U19 -> 472267554.9 | AA46: =P19 -> 30472040
B47: 20164 | C47: 242.1346667 | D47: 120877098 | E47: 3272.72 | F47: 1344.77 | G47: 1066.23 | H47: 2996.98 | J47: 3272.72 | K47: 1344.77 | L47: 1066.23 | M47: 2996.98 | O47: 8680.7 | P47: =SUM(O44:O47)*1000 -> 35776210 | Q47: =(P47/P43-1)*100 -> -2.080208582 | S47: 0.8864098403 | T47: 136367053.4 | U47: =SUM(T44:T47) -> 552461278.9 | X47: 2009 - Aug | Y47: 0
B48: 20171 | C48: 243.8386667 | D48: 122324393 | E48: 3173.24 | F48: 1346.54 | G48: 1103.66 | H48: 3110.52 | J48: 3173.24 | K48: 1346.54 | L48: 1103.66 | M48: 3110.52 | O48: 8733.96 | S48: 0.8926478664 | T48: 137035439.9 | X48: 2009 - Sep | Y48: 0
B49: 20172 | C49: 244.12 | D49: 123415469 | E49: 3165.79 | F49: 1359.21 | G49: 1093.15 | H49: 3025.97 | J49: 3165.79 | K49: 1359.21 | L49: 1093.15 | M49: 3025.97 | O49: 8644.12 | S49: 0.8936777752 | T49: 138098397.9 | X49: 2009 - Oct | Y49: 0
A50: 2017 | B50: 20173 | C50: 245.287 | D50: 123680421 | E50: 3181.28 | F50: 1337.37 | G50: 1088.69 | H50: 3017.74 | J50: 3181.28 | K50: 1337.37 | L50: 1088.69 | M50: 3017.74 | O50: 8625.08 | S50: 0.8979499445 | T50: 137736431.5 | X50: 2009 - Nov | Y50: 0
B51: 20174 | C51: 247.2383333 | D51: 129166667 | E51: 3365.06 | F51: 1369.15 | G51: 1089.65 | H51: 3061.92 | J51: 3365.06 | K51: 1369.15 | L51: 1089.65 | M51: 3061.92 | O51: 8885.78 | P51: =SUM(O48:O51)*1000 -> 34888940 | Q51: =(P51/P47-1)*100 -> -2.480055881 | S51: 0.9050934118 | T51: 142710868.6 | U51: =SUM(T48:T51) -> 555581137.9 | X51: 2009 - Dec | Y51: 0
B52: 20181 | C52: 249.2543333 | D52: 130626725 | E52: 3366.37 | F52: 1365 | G52: 1095.05 | H52: 3181.3 | J52: 3366.37 | K52: 1365 | L52: 1095.05 | M52: 3181.3 | O52: 9007.72 | S52: 0.9124736116 | T52: 143156715.3 | X52: 2010 - Jan | Y52: 0
B53: 20182 | C53: 250.681 | D53: 131816266 | E53: 3416.62 | F53: 1343.61 | G53: 1099.03 | H53: 3161.56 | J53: 3416.62 | K53: 1343.61 | L53: 1099.03 | M53: 3161.56 | O53: 9020.82 | S53: 0.9176963721 | T53: 143638211.9 | X53: 2010 - Feb | Y53: 0
A54: 2018 | B54: 20183 | C54: 251.7703333 | D54: 132126156 | E54: 3426.29 | F54: 1368.42 | G54: 1104.58 | H54: 3239.85 | J54: 3426.29 | K54: 1368.42 | L54: 1104.58 | M54: 3239.85 | O54: 9139.14 | S54: 0.9216842182 | T54: 143352954.7 | X54: 2010 - Mar | Y54: 0
B55: 20184 | C55: 252.69 | D55: 131042328 | E55: 3445.36 | F55: 1399.24 | G55: 1105.08 | H55: 3198.71 | J55: 3445.36 | K55: 1399.24 | L55: 1105.08 | M55: 3198.71 | O55: 9148.39 | P55: =SUM(O52:O55)*1000 -> 36316070 | Q55: =(P55/P51-1)*100 -> 4.090494008 | S55: 0.9250509463 | T55: 141659579.4 | U55: =SUM(T52:T55) -> 571807461.3 | X55: 2010 - Apr | Y55: 0
B56: 20191 | C56: 253.2926667 | D56: 133580946 | E56: 3398.51 | F56: 1369.35 | G56: 1104.75 | H56: 3193.73 | J56: 3398.51 | K56: 1369.35 | L56: 1104.75 | M56: 3193.73 | O56: 9066.34 | S56: 0.9272571965 | T56: 144060295.8 | X56: 2010 - May | Y56: 0
B57: 20192 | C57: 255.283 | D57: 135377975 | E57: 3449.1 | F57: 1469.94 | G57: 1141.54 | H57: 3274.66 | J57: 3449.1 | K57: 1469.94 | L57: 1141.54 | M57: 3274.66 | O57: 9335.24 | S57: 0.9345434356 | T57: 144860013.8 | X57: 2010 - Jun | Y57: 0
A58: 2019 | B58: 20193 | C58: 256.225 | D58: 137074890 | E58: 3428.69 | F58: 1537.22 | G58: 1138.86 | H58: 3243.05 | J58: 3428.69 | K58: 1537.22 | L58: 1138.86 | M58: 3243.05 | O58: 9347.82 | S58: 0.9379919218 | T58: 146136535.7 | W58: 2010 | X58: 2010 - Jul | Y58: 0 | Z58: =U23 -> 476618645.9 | AA58: =P23 -> 32426040
B59: 20194 | C59: 257.7853333 | D59: 139332009 | E59: 3419.25 | F59: 1530.14 | G59: 1120.37 | H59: 3282.82 | J59: 3419.25 | K59: 1530.14 | L59: 1120.37 | M59: 3282.82 | O59: 9352.58 | P59: =SUM(O56:O59)*1000 -> 37101980 | Q59: =(P59/P55-1)*100 -> 2.164083283 | S59: 0.943704011 | T59: 147643760.5 | U59: =SUM(T56:T59) -> 582700605.9 | X59: 2010 - Aug | Y59: 0
B60: 20201 | C60: 258.618 | D60: 133125622 | E60: 3507.62 | F60: 1515.14 | G60: 1056.56 | H60: 3147.69 | J60: 3507.62 | K60: 1515.14 | L60: 1056.56 | M60: 3147.69 | O60: 9227.01 | S60: 0.9467522483 | T60: 140612945.2 | X60: 2010 - Sep | Y60: 0
B61: 20202 | C61: 256.4183333 | D61: 122941528 | E61: 3442.19 | F61: 1444.33 | G61: 969.27 | H61: 3047.19 | J61: 3442.19 | K61: 1444.33 | L61: 969.27 | M61: 3047.19 | O61: 8902.98 | S61: 0.9386996791 | T61: 130970033.1 | X61: 2010 - Oct | Y61: 0
A62: 2020 | B62: 20203 | C62: 259.4376667 | D62: 134739652 | E62: 3489.23 | F62: 1554.3 | G62: 1060.36 | H62: 3250.88 | J62: 3489.23 | K62: 1554.3 | L62: 1060.36 | M62: 3250.88 | O62: 9354.77 | S62: 0.9497528951 | T62: 141868114 | X62: 2010 - Nov | Y62: 0
B63: 20204 | C63: 260.879 | D63: 134338799 | E63: 3516.84 | F63: 1652.14 | G63: 1086.28 | H63: 3291.74 | J63: =E63*$J$2 -> 3516.84 | K63: 1652.14 | L63: 1086.28 | M63: 3291.74 | O63: =SUM(J63:M63) -> 9547 | P63: =SUM(O60:O63)*1000 -> 37031760 | Q63: =(P63/P59-1)*100 -> -0.1892621364 | S63: 0.9550293475 | T63: 140664576.8 | U63: =SUM(T60:T63) -> 554115669 | X63: 2010 - Dec | Y63: 0
B64: 20211 | C64: 263.5246667 | D64: 161149341 | E64: 4466.78 | F64: 1775.91 | G64: 1225.57 | H64: 3711.44 | J64: =E64*$J$2 -> 4466.78 | K64: =F64*$K$2 -> 1775.91 | L64: =G64*$L$2 -> 1225.57 | M64: =H64*$M$2 -> 3711.44 | O64: =SUM(J64:M64) -> 11179.7 | S64: 0.9647146396 | T64: 167043532.2 | X64: 2011 - Jan | Y64: 0
B65: 20212 | C65: 268.7603333 | D65: 166072848 | E65: 4636.17 | F65: 1896.56 | G65: 1309.74 | H65: 4148.25 | S65: 0.9838814385 | T65: 168793557.3 | X65: 2011 - Feb | Y65: 0
B66: 20213 | C66: 273.1633333 | D66: 162396153 | S66: 1 | T66: 162396153 | X66: 2011 - Mar | Y66: 0
B67: 20214 | C67: 278.4133333 | D67: 163593350 | P67: =P63*((Q67/100)+1) -> 69634948.97 | Q67: =(((O64/O63)^(4/1))-1)*100 -> 88.04115433 | S67: 1.019219271 | X67: 2011 - Apr | Y67: 0
X68: 2011 - May | Y68: 0
W69: =IF(RIGHT(X69,3)="Jul",LEFT(X69,4),"") ->  | X69: 2011 - Jun | Y69: 0
W70: 2011 | X70: 2011 - Jul | Y70: 0 | Z70: =U27 -> 500082721.3 | AA70: =P27 -> 34033810
X71: 2011 - Aug | Y71: 0
X72: 2011 - Sep | Y72: 0
X73: 2011 - Oct | Y73: 0
X74: 2011 - Nov | Y74: 0
X75: 2011 - Dec | Y75: 0
X76: 2012 - Jan | Y76: 0
X77: 2012 - Feb | Y77: 0
X78: 2012 - Mar | Y78: 0
X79: 2012 - Apr | Y79: 0
X80: 2012 - May | Y80: 0
X81: 2012 - Jun | Y81: 0
W82: 2012 | X82: 2012 - Jul | Y82: 0 | Z82: =U31 -> 519302523.9 | AA82: =P31 -> 35190220
X83: 2012 - Aug | Y83: 0
X84: 2012 - Sep | Y84: 0
X85: 2012 - Oct | Y85: 0
X86: 2012 - Nov | Y86: 0
X87: 2012 - Dec | Y87: 0
X88: 2013 - Jan | Y88: 0
X89: 2013 - Feb | Y89: 0
X90: 2013 - Mar | Y90: 0
X91: 2013 - Apr | Y91: 0
X92: 2013 - May | Y92: 0
X93: 2013 - Jun | Y93: 0
W94: 2013 | X94: 2013 - Jul | Y94: 0 | Z94: =U35 -> 538782155 | AA94: =P35 -> 35850960
X95: 2013 - Aug | Y95: 0
X96: 2013 - Sep | Y96: 0
X97: 2013 - Oct | Y97: 0
X98: 2013 - Nov | Y98: 0
X99: 2013 - Dec | Y99: 0
X100: 2014 - Jan | Y100: 0
X101: 2014 - Feb | Y101: 0
X102: 2014 - Mar | Y102: 0
X103: 2014 - Apr | Y103: 0
X104: 2014 - May | Y104: 0
X105: 2014 - Jun | Y105: 0
W106: 2014 | X106: 2014 - Jul | Y106: 0 | Z106: =U39 -> 570372787.6 | AA106: =P39 -> 36759320
X107: 2014 - Aug | Y107: 0
X108: 2014 - Sep | Y108: 0
X109: 2014 - Oct | Y109: 0
X110: 2014 - Nov | Y110: 0
X111: 2014 - Dec | Y111: 0
X112: 2015 - Jan | Y112: 0
X113: 2015 - Feb | Y113: 0
X114: 2015 - Mar | Y114: 0
X115: 2015 - Apr | Y115: 0
X116: 2015 - May | Y116: 0
X117: 2015 - Jun | Y117: 0
W118: 2015 | X118: 2015 - Jul | Y118: 0 | Z118: =U43 -> 562158172.3 | AA118: =P43 -> 36536240
X119: 2015 - Aug | Y119: 0
X120: 2015 - Sep | Y120: 0
X121: 2015 - Oct | Y121: 0
X122: 2015 - Nov | Y122: 0
X123: 2015 - Dec | Y123: 0
X124: 2016 - Jan | Y124: 0
X125: 2016 - Feb | Y125: 0
X126: 2016 - Mar | Y126: 0
X127: 2016 - Apr | Y127: 0
X128: 2016 - May | Y128: 0
X129: 2016 - Jun | Y129: 0
W130: 2016 | X130: 2016 - Jul | Y130: 0 | Z130: =U47 -> 552461278.9 | AA130: =P47 -> 35776210
X131: 2016 - Aug | Y131: 0
X132: 2016 - Sep | Y132: 0
W133: =IF(RIGHT(X133,3)="Jul",LEFT(X133,4),"") ->  | X133: 2016 - Oct | Y133: 0
X134: 2016 - Nov | Y134: 0
X135: 2016 - Dec | Y135: 0
X136: 2017 - Jan | Y136: 0
X137: 2017 - Feb | Y137: 0
X138: 2017 - Mar | Y138: 0
X139: 2017 - Apr | Y139: 0
X140: 2017 - May | Y140: 0
X141: 2017 - Jun | Y141: 0
W142: 2017 | X142: 2017 - Jul | Y142: 0 | Z142: =U51 -> 555581137.9 | AA142: =P51 -> 34888940
X143: 2017 - Aug | Y143: 0
X144: 2017 - Sep | Y144: 0
X145: 2017 - Oct | Y145: 0
X146: 2017 - Nov | Y146: 0
X147: 2017 - Dec | Y147: 0
X148: 2018 - Jan | Y148: 0
X149: 2018 - Feb | Y149: 0
X150: 2018 - Mar | Y150: 0
X151: 2018 - Apr | Y151: 0
X152: 2018 - May | Y152: 0
X153: 2018 - Jun | Y153: 0
W154: 2018 | X154: 2018 - Jul | Y154: 0 | Z154: =U55 -> 571807461.3 | AA154: =P55 -> 36316070
X155: 2018 - Aug | Y155: 0
X156: 2018 - Sep | Y156: 0
X157: 2018 - Oct | Y157: 0
X158: 2018 - Nov | Y158: 0
X159: 2018 - Dec | Y159: 0
X160: 2019 - Jan | Y160: 0
X161: 2019 - Feb | Y161: 0
X162: 2019 - Mar | Y162: 0
X163: 2019 - Apr | Y163: 0
X164: 2019 - May | Y164: 0
X165: 2019 - Jun | Y165: 0
W166: 2019 | X166: 2019 - Jul | Y166: 0 | Z166: =U59 -> 582700605.9 | AA166: =P59 -> 37101980
X167: 2019 - Aug | Y167: 0
X168: 2019 - Sep | Y168: 0
X169: 2019 - Oct | Y169: 0
X170: 2019 - Nov | Y170: 0
X171: 2019 - Dec | Y171: 0
X172: 2020 - Jan | Y172: 0
X173: 2020 - Feb | Y173: 1e+16
X174: 2020 - Mar | Y174: 1e+16
X175: 2020 - Apr | Y175: 1e+16
X176: 2020 - May | Y176: 0
X177: 2020 - Jun | Y177: 0
W178: 2020 | X178: 2020 - Jul | Y178: 0 | Z178: =U63 -> 554115669 | AA178: =P63 -> 37031760
X179: 2020 - Aug | Y179: 0
X180: 2020 - Sep | Y180: 0
X181: 2020 - Oct | Y181: 0
X182: 2020 - Nov | Y182: 0
X183: 2020 - Dec | Y183: 0
X184: 2021 - Jan | Y184: 0
X185: 2021 - Feb | Y185: 0
X186: 2021 - Mar | Y186: 0
X187: 2021 - Apr | Y187: 0
X188: 2021 - May | Y188: 0
X189: 2021 - Jun | Y189: 0
W190: 2021 | X190: 2021 - Jul | Y190: 0
X191: 2021 - Aug | Y191: 0
X192: 2021 - Sep | Y192: 0
X193: 2021 - Oct | Y193: 0
X194: 2021 - Nov | Y194: 0
X195: 2021 - Dec | Y195: 0
X196: 2022 - Jan | Y196: 0

Sheet Data4
C1: Brownsville | D1: =C28/(C28+N28+Y28+AJ28) -> 0.1753427904 | N1: El Paso | O1: =N28/(C28+N28+Y28+AJ28) -> 0.3763537991 | Y1: McAllen | Z1: =Y28/(C28+N28+Y28+AJ28) -> 0.3277648472 | AJ1: Laredo | AK1: =AJ28/(C28+N28+Y28+AJ28) -> 0.1205385633 | AU1: Texas
C2: Total | D2: Constr., Mining, & Nat Res | E2: Trade, Transp. & Util. | F2: Mfg. | G2: Prof. & Bus. Serv. | H2: Financial | I2: Leisure & Hosp. | J2: Educ. & Health Serv. | K2: Gov't | L2: Info. & Other Svcs | N2: Total | O2: Constr., Mining, & Nat Res | P2: Trade, Transp. & Util. | Q2: Mfg. | R2: Prof. & Bus. Serv. | S2: Financial | T2: Leisure & Hosp. | U2: Educ. & Health Serv. | V2: Gov't | W2: Info. & Other Svcs | Y2: Total | Z2: Constr., Mining, & Nat Res | AA2: Trade, Transp. & Util. | AB2: Mfg. | AC2: Prof. & Bus. Serv. | AD2: Financial | AE2: Leisure & Hosp. | AF2: Educ. & Health Serv. | AG2: Gov't | AH2: Info. & Other Svcs | AJ2: Total | AK2: Constr., Mining, & Nat Res | AL2: Trade, Transp. & Util. | AM2: Mfg. | AN2: Prof. & Bus. Serv. | AO2: Financial | AP2: Leisure & Hosp. | AQ2: Educ. & Health Serv. | AR2: Gov't | AS2: Info. & Other Svcs | AU2: Total | AV2: Constr., Oil & Gas, Mining Sup. | AW2: Trade, Transp. & Util. | AX2: Mfg. | AY2: Prof. & Bus. Serv. | AZ2: Financial | BA2: Leisure & Hosp. | BB2: Educ. & Health Serv. | BC2: Gov't | BD2: Info. & Other Svcs
B3: 202002 *M | C3: agg(bronaga@dalempn,eop) | D3: agg(bronrmca@dalempn,eop) | E3: agg(broTTULA@dalempn,eop) | F3: agg(broMANUA@dalempn,eop) | G3: agg(broPBSVA@dalempn,eop) | H3: agg(broFIREA@dalempn,eop) | I3: agg(broLEIHA@dalempn,eop) | J3: agg(broEDUHA@dalempn,eop) | K3: agg(broGOVTA@dalempn,eop) | L3: agg(broINFOA@dalempn+broSRVOA@dalempn,eop) | N3: agg(elpnaga@dalempn,eop) | O3: agg(elpnrmca@dalempn,eop) | P3: agg(elpTTULA@dalempn,eop) | Q3: agg(elpMANUA@dalempn,eop) | R3: agg(elpPBSVA@dalempn,eop) | S3: agg(elpFIREA@dalempn,eop) | T3: agg(elpLEIHA@dalempn,eop) | U3: agg(elpEDUHA@dalempn,eop) | V3: agg(elpGOVTA@dalempn,eop) | W3: agg(elpINFOA@dalempn+elpSRVOA@dalempn,eop) | Y3: agg(mcanaga@dalempn,eop) | Z3: agg(mcanrmca@dalempn,eop) | AA3: agg(mcaTTULA@dalempn,eop) | AB3: agg(mcaMANUA@dalempn,eop) | AC3: agg(mcaPBSVA@dalempn,eop) | AD3: agg(mcaFIREA@dalempn,eop) | AE3: agg(mcaLEIHA@dalempn,eop) | AF3: agg(mcaEDUHA@dalempn,eop) | AG3: agg(mcaGOVTA@dalempn,eop) | AH3: agg(mcaINFOA@dalempn+mcaSRVOA@dalempn,eop) | AJ3: agg(larnaga@dalempn,eop) | AK3: agg(larnrmca@dalempn,eop) | AL3: agg(larTTULA@dalempn,eop) | AM3: agg(larMANUA@dalempn,eop) | AN3: agg(larPBSVA@dalempn,eop) | AO3: agg(larFIREA@dalempn,eop) | AP3: agg(larLEIHA@dalempn,eop) | AQ3: agg(larEDUHA@dalempn,eop) | AR3: agg(larGOVTA@dalempn,eop) | AS3: agg(larINFOA@dalempn+larSRVOA@dalempn,eop) | AU3: agg(TXLNAGRA@DALEMPN,eop) | AV3: agg(txLCONSA@dalempn+TXLB1A@DALEMPN+TXLB3A@DALEMPN,eop) | AW3: agg(txLTTULA@dalempn,eop) | AX3: agg(txLMANUA@dalempn,eop) | AY3: agg(txLPBSVA@dalempn,eop) | AZ3: agg(txLFIREA@dalempn,eop) | BA3: agg(txLLEIHA@dalempn,eop) | BB3: agg(txLEDUHA@dalempn,eop) | BC3: agg(txLGOVTA@dalempn,eop) | BD3: agg(txLSRVOA@dalempn+txLINFOA@dalempn,eop)
B4: .DTLM | C4: Jan-21-2022 09:29 | D4: Jan-21-2022 09:29 | E4: Jan-21-2022 09:29 | F4: Jan-21-2022 09:29 | G4: Jan-21-2022 09:29 | H4: Jan-21-2022 09:29 | I4: Jan-21-2022 09:29 | J4: Jan-21-2022 09:29 | K4: Jan-21-2022 09:29 | L4: BROINFOA: Jan-21-2022 09:29 BROSRVOA: Jan-21-2022 09:29 | N4: Jan-21-2022 09:29 | O4: Jan-21-2022 09:29 | P4: Jan-21-2022 09:29 | Q4: Jan-21-2022 09:29 | R4: Jan-21-2022 09:29 | S4: Jan-21-2022 09:29 | T4: Jan-21-2022 09:29 | U4: Jan-21-2022 09:29 | V4: Jan-21-2022 09:29 | W4: ELPINFOA: Jan-21-2022 09:29 ELPSRVOA: Jan-21-2022 09:29 | Y4: Jan-21-2022 09:29 | Z4: Jan-21-2022 09:29 | AA4: Jan-21-2022 09:29 | AB4: Jan-21-2022 09:29 | AC4: Jan-21-2022 09:29 | AD4: Jan-21-2022 09:29 | AE4: Jan-21-2022 09:29 | AF4: Jan-21-2022 09:29 | AG4: Jan-21-2022 09:29 | AH4: MCAINFOA: Jan-21-2022 09:29 MCASRVOA: Jan-21-2022 09:29 | AJ4: Jan-21-2022 09:29 | AK4: Jan-21-2022 09:29 | AL4: Jan-21-2022 09:29 | AM4: Jan-21-2022 09:29 | AN4: Jan-21-2022 09:29 | AO4: Jan-21-2022 09:29 | AP4: Jan-21-2022 09:29 | AQ4: Jan-21-2022 09:29 | AR4: Jan-21-2022 09:29 | AS4: LARINFOA: Jan-21-2022 09:29 LARSRVOA: Jan-21-2022 09:29 | AU4: Jan-21-2022 09:26 | AV4: TXLCONSA: Jan-21-2022 09:26 TXLB1A: Jan-21-2022 09:26 TXLB3A: Jan-21-2022 09:26 | AW4: Jan-21-2022 09:26 | AX4: Jan-21-2022 09:26 | AY4: Jan-21-2022 09:26 | AZ4: Jan-21-2022 09:26 | BA4: Jan-21-2022 09:26 | BB4: Jan-21-2022 09:26 | BC4: Jan-21-2022 09:26 | BD4: TXLSRVOA: Jan-21-2022 09:26 TXLINFOA: Jan-21-2022 09:26
B5: .DESC | C5: Total Nonfarm, Brownsville, sum of SA components (Thous) | D5: Construction & Mining, Brownsville, SA (Thous) | E5: Trade, Transp & Utilities, Brownsville, SA (Thous) | F5: Manufacturing, Brownsville, SA (Thous) | G5: Professional & Business Svc, Brownsville, SA (Thous) | H5: Financial Activities, Brownsville, SA (Thous) | I5: Leisure & Hospitality, Brownsville, SA (Thous) | J5: Educational & Health Services, Brownsville, SA (Thous) | K5: Government, Brownsville, SA (Thous) | L5: BROINFOA: Information, Brownsville, SA (Thous) BROSRVOA: Other Services, Brownsville, SA (Thous) | N5: Total Nonfarm, El Paso, SA Berger-Phillips (Thous) | O5: Construction, Mining, & Natural Resources, El Paso, SA (Thous) | P5: Trade, Transp & Utilities, El Paso, SA (Thous) | Q5: Manufacturing, El Paso, SA (Thous) | R5: Professional & Business Svc, El Paso, SA (Thous) | S5: Financial Activities, El Paso, SA (Thous) | T5: Leisure & Hospitality, El Paso, SA (Thous) | U5: Educational & Health Services, El Paso, SA (Thous) | V5: Government, El Paso, SA (Thous) | W5: ELPINFOA: Information, El Paso, SA (Thous) ELPSRVOA: Other Services, El Paso, SA (Thous) | Y5: Total Nonfarm, McAllen, sum of SA components (Thous) | Z5: Construction & Mining, McAllen, SA (Thous) | AA5: Trade, Transp & Utilities, McAllen, SA (Thous) | AB5: Manufacturing, McAllen, SA (Thous) | AC5: Professional & Business Svc, McAllen, SA (Thous) | AD5: Financial Activities, McAllen, SA (Thous) | AE5: Leisure & Hospitality, McAllen, SA (Thous) | AF5: Educational & Health Services, McAllen, SA (Thous) | AG5: Government, McAllen, SA (Thous) | AH5: MCAINFOA: Information, McAllen, SA (Thous) MCASRVOA: Other Services, McAllen, SA (Thous) | AJ5: Total Nonfarm, Laredo, sum of SA components (Thous) | AK5: Construction & Mining, Laredo, SA (Thous) | AL5: Trade, Transp & Utilities, Laredo, SA (Thous) | AM5: Manufacturing, Laredo, SA (Thous) | AN5: Professional & Business Svc, Laredo, SA (Thous) | AO5: Financial Activities, Laredo, SA (Thous) | AP5: Leisure & Hospitality, Laredo, SA (Thous) | AQ5: Educational & Health Services, Laredo, SA (Thous) | AR5: Government, Laredo, SA (Thous) | AS5: LARINFOA: Information, Laredo, SA (Thous) LARSRVOA: Other Services, Laredo, SA (Thous) | AU5: All Employees: Total Nonfarm, TX, SA (Thous) | AV5: TXLCONSA: All Employees: Construction, TX, SA (Thous) TXLB1A: All Employees: Oil & Gas Extraction, TX, SA (Thous) TXLB3A: All Employees: Support Activities for Mining, TX, SA (Thous) | AW5: All Employees: Trade, Transp & Utilities, TX, SA (Thous) | AX5: All Employees: Manufacturing, TX, SA (Thous) | AY5: All Employees: Professional & Business Svc, TX, SA (Thous) | AZ5: All Employees: Financial Activities, TX, SA (Thous) | BA5: All Employees: Leisure & Hospitality, TX, SA (Thous) | BB5: All Employees: Educational & Health Services, TX, SA (Thous) | BC5: All Employees: Government, TX, SA (Thous) | BD5: TXLSRVOA: All Employees: Other Services, TX, SA (Thous) TXLINFOA: All Employees: Information, TX, SA (Thous)
B6: 202002 | C6: 146.906 | D6: 3.439 | E6: 25.389 | F6: 6.206 | G6: 12.599 | H6: 4.94 | I6: 16.788 | J6: 43.237 | K6: 30.424 | L6: 3.885 | N6: 327.05 | O6: 17.46 | P6: 68.242 | Q6: 17.686 | R6: 37.251 | S6: 13.606 | T6: 38.204 | U6: 48.869 | V6: 71.874 | W6: 13.858 | Y6: 274.798 | Z6: 8.092 | AA6: 53.371 | AB6: 7.266 | AC6: 17.681 | AD6: 9.384 | AE6: 27.101 | AF6: 82.148 | AG6: 61.012 | AH6: 8.742 | AJ6: 108.442 | AK6: 3.973 | AL6: 32.501 | AM6: 0.789 | AN6: 9.904 | AO6: 3.869 | AP6: 12.036 | AQ6: 17.64 | AR6: 24.534 | AS6: 3.196 | AU6: 12982.427 | AV6: 1001.962 | AW6: 2537.21 | AX6: 910.352 | AY6: 1834.786 | AZ6: 818.259 | BA6: 1422.731 | BB6: 1776.303 | BC6: 2001.794 | BD6: 664.388
B7: 202003 | C7: 146.604 | D7: 3.451 | E7: 25.375 | F7: 6.139 | G7: 12.614 | H7: 4.87 | I7: 16.593 | J7: 43.281 | K7: 30.513 | L7: 3.767 | N7: 326.942 | O7: 17.541 | P7: 68.099 | Q7: 17.672 | R7: 37.36 | S7: 13.64 | T7: 37.782 | U7: 49.109 | V7: 72.062 | W7: 13.678 | Y7: 274.167 | Z7: 8.075 | AA7: 53.195 | AB7: 7.346 | AC7: 17.731 | AD7: 9.256 | AE7: 26.583 | AF7: 82.347 | AG7: 60.877 | AH7: 8.757 | AJ7: 107.724 | AK7: 3.881 | AL7: 32.269 | AM7: 0.788 | AN7: 9.676 | AO7: 3.894 | AP7: 11.953 | AQ7: 17.601 | AR7: 24.578 | AS7: 3.084 | AU7: 12907.619 | AV7: 996.923 | AW7: 2535.171 | AX7: 908.342 | AY7: 1824.038 | AZ7: 817.777 | BA7: 1381.884 | BB7: 1771.718 | BC7: 2002.843 | BD7: 654.747
B8: 202004 | C8: 130.634 | D8: 3.241 | E8: 21.996 | F8: 5.401 | G8: 11.234 | H8: 4.6 | I8: 10.25 | J8: 41.387 | K8: 29.521 | L8: 3.005 | N8: 290.35 | O8: 16.803 | P8: 60.519 | Q8: 15.727 | R8: 34.359 | S8: 13.122 | T8: 22.543 | U8: 44.734 | V8: 71.202 | W8: 11.342 | Y8: 245.555 | Z8: 7.4 | AA8: 46.35 | AB8: 6.333 | AC8: 16.155 | AD8: 8.914 | AE8: 16.747 | AF8: 77.535 | AG8: 59.109 | AH8: 7.011 | AJ8: 94.6 | AK8: 3.312 | AL8: 28.656 | AM8: 0.714 | AN8: 8.535 | AO8: 3.623 | AP8: 7.425 | AQ8: 16.112 | AR8: 23.597 | AS8: 2.626 | AU8: 11527.323 | AV8: 915.367 | AW8: 2334.158 | AX8: 854.788 | AY8: 1681.945 | AZ8: 793.619 | BA8: 857.046 | BB8: 1597.527 | BC8: 1949.933 | BD8: 529.804
B9: 202005 | C9: 135.496 | D9: 3.402 | E9: 22.975 | F9: 5.566 | G9: 12.072 | H9: 4.697 | I9: 12.865 | J9: 42.036 | K9: 28.798 | L9: 3.086 | N9: 297.073 | O9: 17.229 | P9: 61.894 | Q9: 15.616 | R9: 34.704 | S9: 13.153 | T9: 26.403 | U9: 45.866 | V9: 70.534 | W9: 11.675 | Y9: 252.818 | Z9: 7.62 | AA9: 48.206 | AB9: 6.718 | AC9: 17.133 | AD9: 8.917 | AE9: 20.256 | AF9: 79.448 | AG9: 57.156 | AH9: 7.363 | AJ9: 96.551 | AK9: 3.097 | AL9: 29.102 | AM9: 0.714 | AN9: 8.794 | AO9: 3.541 | AP9: 8.644 | AQ9: 16.615 | AR9: 23.437 | AS9: 2.607 | AU9: 11757.683 | AV9: 902.564 | AW9: 2384.289 | AX9: 856.494 | AY9: 1694.214 | AZ9: 795.2 | BA9: 1003.813 | BB9: 1646.585 | BC9: 1914.852 | BD9: 547.801
B10: 202006 | C10: 139.45 | D10: 3.407 | E10: 23.823 | F10: 5.869 | G10: 12.595 | H10: 4.673 | I10: 14.164 | J10: 42.537 | K10: 29.023 | L10: 3.359 | N10: 307.739 | O10: 17.297 | P10: 64.529 | Q10: 16.321 | R10: 35.674 | S10: 13.346 | T10: 30.368 | U10: 46.438 | V10: 71.467 | W10: 12.299 | Y10: 260.553 | Z10: 7.6 | AA10: 50.494 | AB10: 6.757 | AC10: 17.916 | AD10: 8.954 | AE10: 22.303 | AF10: 80.641 | AG10: 58.311 | AH10: 7.576 | AJ10: 98.711 | AK10: 2.994 | AL10: 30.143 | AM10: 0.679 | AN10: 8.911 | AO10: 3.509 | AP10: 9.348 | AQ10: 16.894 | AR10: 23.539 | AS10: 2.693 | AU10: 11973.718 | AV10: 890.054 | AW10: 2436.926 | AX10: 858.399 | AY10: 1705.472 | AZ10: 796.518 | BA10: 1108.87 | BB10: 1675.631 | BC10: 1918.245 | BD10: 571.436
B11: 202007 | C11: 137.685 | D11: 3.232 | E11: 23.735 | F11: 5.804 | G11: 12.694 | H11: 4.657 | I11: 13.21 | J11: 41.965 | K11: 29.101 | L11: 3.287 | N11: 310.688 | O11: 17.679 | P11: 64.84 | Q11: 16.623 | R11: 35.985 | S11: 13.382 | T11: 30.432 | U11: 46.613 | V11: 72.95 | W11: 12.183 | Y11: 261.69 | Z11: 7.354 | AA11: 50.677 | AB11: 6.8 | AC11: 18.52 | AD11: 8.736 | AE11: 21.578 | AF11: 79.926 | AG11: 60.673 | AH11: 7.426 | AJ11: 99.257 | AK11: 2.99 | AL11: 30.131 | AM11: 0.691 | AN11: 9.562 | AO11: 3.498 | AP11: 9.256 | AQ11: 16.84 | AR11: 23.585 | AS11: 2.704 | AU11: 12005.515 | AV11: 879.638 | AW11: 2445.352 | AX11: 850.198 | AY11: 1721.651 | AZ11: 796.819 | BA11: 1096.938 | BB11: 1677.495 | BC11: 1948.84 | BD11: 575.843
B12: 202008 | C12: 140.117 | D12: 3.406 | E12: 24.13 | F12: 5.775 | G12: 13.035 | H12: 4.558 | I12: 13.608 | J12: 41.386 | K12: 30.892 | L12: 3.327 | N12: 311.749 | O12: 17.431 | P12: 65.132 | Q12: 16.823 | R12: 36.212 | S12: 13.409 | T12: 31.117 | U12: 46.456 | V12: 72.773 | W12: 12.397 | Y12: 260.67 | Z12: 7.266 | AA12: 50.831 | AB12: 6.638 | AC12: 18.28 | AD12: 8.743 | AE12: 21.694 | AF12: 78.625 | AG12: 61.114 | AH12: 7.478 | AJ12: 98.843 | AK12: 2.995 | AL12: 30.228 | AM12: 0.686 | AN12: 9.49 | AO12: 3.411 | AP12: 9.154 | AQ12: 16.566 | AR12: 23.61 | AS12: 2.703 | AU12: 12082.522 | AV12: 875.957 | AW12: 2455.774 | AX12: 850.416 | AY12: 1734.376 | AZ12: 798.258 | BA12: 1115.326 | BB12: 1676.352 | BC12: 1983.852 | BD12: 579.024
B13: 202009 | C13: 139.979 | D13: 3.523 | E13: 24.311 | F13: 5.795 | G13: 13.08 | H13: 4.7 | I13: 14.465 | J13: 41.546 | K13: 29.227 | L13: 3.333 | N13: 310.84 | O13: 17.476 | P13: 65.558 | Q13: 16.893 | R13: 36.002 | S13: 13.371 | T13: 32.481 | U13: 46.462 | V13: 70.035 | W13: 12.562 | Y13: 262.363 | Z13: 7.357 | AA13: 51.451 | AB13: 6.744 | AC13: 18.163 | AD13: 8.768 | AE13: 22.59 | AF13: 79.186 | AG13: 60.3 | AH13: 7.804 | AJ13: 98.975 | AK13: 3.019 | AL13: 30.209 | AM13: 0.683 | AN13: 9.444 | AO13: 3.403 | AP13: 9.441 | AQ13: 16.496 | AR13: 23.567 | AS13: 2.715 | AU13: 12142.75 | AV13: 875.208 | AW13: 2473.136 | AX13: 852.866 | AY13: 1740.135 | AZ13: 800.891 | BA13: 1149.731 | BB13: 1679.617 | BC13: 1972.37 | BD13: 585.337
B14: 202010 | C14: 141.148 | D14: 3.438 | E14: 24.793 | F14: 5.861 | G14: 13.473 | H14: 4.683 | I14: 15.144 | J14: 41.545 | K14: 28.884 | L14: 3.326 | N14: 310.974 | O14: 17.688 | P14: 66.438 | Q14: 17.053 | R14: 36.397 | S14: 13.405 | T14: 33.294 | U14: 46.441 | V14: 67.635 | W14: 12.622 | Y14: 261.12 | Z14: 7.313 | AA14: 52.204 | AB14: 6.775 | AC14: 18.312 | AD14: 8.755 | AE14: 23.297 | AF14: 79.723 | AG14: 56.979 | AH14: 7.762 | AJ14: 99.169 | AK14: 3.012 | AL14: 30.644 | AM14: 0.687 | AN14: 9.552 | AO14: 3.378 | AP14: 9.684 | AQ14: 16.706 | AR14: 22.814 | AS14: 2.692 | AU14: 12254.238 | AV14: 877.863 | AW14: 2508.145 | AX14: 855.111 | AY14: 1765.982 | AZ14: 806.487 | BA14: 1192.866 | BB14: 1699.296 | BC14: 1943.37 | BD14: 591.81
B15: 202011 | C15: 141.697 | D15: 3.35 | E15: 24.639 | F15: 5.891 | G15: 14.05 | H15: 4.617 | I15: 15.411 | J15: 41.537 | K15: 28.854 | L15: 3.349 | N15: 308.766 | O15: 17.711 | P15: 66.132 | Q15: 16.856 | R15: 36.439 | S15: 13.302 | T15: 31.682 | U15: 45.776 | V15: 68.381 | W15: 12.487 | Y15: 261.832 | Z15: 7.307 | AA15: 52.006 | AB15: 6.799 | AC15: 18.774 | AD15: 8.751 | AE15: 23.531 | AF15: 80.064 | AG15: 56.737 | AH15: 7.865 | AJ15: 99.092 | AK15: 2.911 | AL15: 30.53 | AM15: 0.747 | AN15: 9.693 | AO15: 3.369 | AP15: 9.702 | AQ15: 16.818 | AR15: 22.649 | AS15: 2.675 | AU15: 12291.218 | AV15: 879.136 | AW15: 2509.347 | AX15: 855.79 | AY15: 1781.679 | AZ15: 809.516 | BA15: 1204.972 | BB15: 1702.946 | BC15: 1943.381 | BD15: 591.1
B16: 202012 | C16: 141.959 | D16: 3.352 | E16: 24.745 | F16: 5.932 | G16: 14.054 | H16: 4.66 | I16: 15.413 | J16: 41.609 | K16: 28.832 | L16: 3.362 | N16: 310.749 | O16: 17.756 | P16: 66.31 | Q16: 17.156 | R16: 36.839 | S16: 13.336 | T16: 32.36 | U16: 45.891 | V16: 68.62 | W16: 12.479 | Y16: 262.664 | Z16: 7.286 | AA16: 52.074 | AB16: 6.844 | AC16: 18.69 | AD16: 8.755 | AE16: 23.85 | AF16: 80.269 | AG16: 56.999 | AH16: 7.898 | AJ16: 99.495 | AK16: 3.022 | AL16: 30.702 | AM16: 0.772 | AN16: 9.729 | AO16: 3.377 | AP16: 9.771 | AQ16: 16.789 | AR16: 22.666 | AS16: 2.667 | AU16: 12338.701 | AV16: 880.269 | AW16: 2512.971 | AX16: 859.004 | AY16: 1799.862 | AZ16: 812.11 | BA16: 1213.08 | BB16: 1707.076 | BC16: 1946.938 | BD16: 594.133
B17: 202101 | C17: 144.371 | D17: 3.364 | E17: 24.656 | F17: 6.078 | G17: 16.009 | H17: 4.713 | I17: 15.377 | J17: 42.294 | K17: 28.498 | L17: 3.382 | N17: 311.861 | O17: 18.017 | P17: 66.786 | Q17: 17.265 | R17: 36.428 | S17: 13.208 | T17: 33.149 | U17: 46.087 | V17: 68.464 | W17: 12.457 | Y17: 263.326 | Z17: 7.234 | AA17: 52.117 | AB17: 6.798 | AC17: 18.745 | AD17: 8.632 | AE17: 24.25 | AF17: 80.069 | AG17: 57.414 | AH17: 8.066 | AJ17: 99.081 | AK17: 3.085 | AL17: 30.854 | AM17: 0.694 | AN17: 9.762 | AO17: 3.367 | AP17: 9.772 | AQ17: 16.473 | AR17: 22.515 | AS17: 2.559 | AU17: 12382.394 | AV17: 879.259 | AW17: 2511.85 | AX17: 862.101 | AY17: 1820.102 | AZ17: 815.307 | BA17: 1218.646 | BB17: 1713.14 | BC17: 1948.672 | BD17: 600.047
B18: 202102 | C18: 144.025 | D18: 3.332 | E18: 24.969 | F18: 5.976 | G18: 16.015 | H18: 4.765 | I18: 15.201 | J18: 42.08 | K18: 28.318 | L18: 3.369 | N18: 312.193 | O18: 17.869 | P18: 66.92 | Q18: 17.315 | R18: 36.218 | S18: 13.315 | T18: 33.616 | U18: 45.926 | V18: 68.382 | W18: 12.633 | Y18: 262.962 | Z18: 7.183 | AA18: 52.294 | AB18: 6.776 | AC18: 19.064 | AD18: 8.656 | AE18: 24.322 | AF18: 79.76 | AG18: 56.792 | AH18: 8.113 | AJ18: 98.908 | AK18: 3.075 | AL18: 31.133 | AM18: 0.696 | AN18: 9.793 | AO18: 3.364 | AP18: 9.571 | AQ18: 16.436 | AR18: 22.249 | AS18: 2.593 | AU18: 12342.183 | AV18: 872.343 | AW18: 2511.862 | AX18: 860.54 | AY18: 1818.83 | AZ18: 815.784 | BA18: 1208.438 | BB18: 1704.502 | BC18: 1940.187 | BD18: 596.286
B19: 202103 | C19: 144.54 | D19: 3.346 | E19: 25.052 | F19: 6.089 | G19: 16.064 | H19: 4.759 | I19: 15.537 | J19: 42.143 | K19: 28.089 | L19: 3.462 | N19: 314.548 | O19: 18.144 | P19: 67.349 | Q19: 17.337 | R19: 36.848 | S19: 13.247 | T19: 34.315 | U19: 46.069 | V19: 68.504 | W19: 12.735 | Y19: 263.962 | Z19: 7.172 | AA19: 52.624 | AB19: 6.74 | AC19: 19.068 | AD19: 8.624 | AE19: 24.781 | AF19: 79.941 | AG19: 56.775 | AH19: 8.237 | AJ19: 99.515 | AK19: 3.187 | AL19: 31.387 | AM19: 0.713 | AN19: 9.8 | AO19: 3.364 | AP19: 9.897 | AQ19: 16.351 | AR19: 22.193 | AS19: 2.623 | AU19: 12465.535 | AV19: 893.425 | AW19: 2530.494 | AX19: 866.345 | AY19: 1846.213 | AZ19: 823.7 | BA19: 1234.055 | BB19: 1713.383 | BC19: 1938.386 | BD19: 606.269
B20: 202104 | C20: 145.7 | D20: 3.442 | E20: 25.144 | F20: 6.317 | G20: 16.618 | H20: 4.805 | I20: 15.684 | J20: 41.885 | K20: 28.269 | L20: 3.536 | N20: 313.95 | O20: 18.304 | P20: 67.537 | Q20: 17.333 | R20: 35.161 | S20: 13.365 | T20: 34.805 | U20: 46.073 | V20: 68.631 | W20: 12.742 | Y20: 267.642 | Z20: 7.187 | AA20: 52.696 | AB20: 6.681 | AC20: 21.421 | AD20: 8.651 | AE20: 25.09 | AF20: 80.577 | AG20: 57.075 | AH20: 8.263 | AJ20: 100.512 | AK20: 3.112 | AL20: 31.465 | AM20: 0.735 | AN20: 9.906 | AO20: 3.413 | AP20: 10.187 | AQ20: 16.739 | AR20: 22.269 | AS20: 2.686 | AU20: 12516.949 | AV20: 893.192 | AW20: 2535.643 | AX20: 864.804 | AY20: 1861.446 | AZ20: 827.066 | BA20: 1253.162 | BB20: 1720.901 | BC20: 1938.705 | BD20: 608.484
B21: 202105 | C21: 146.42 | D21: 3.408 | E21: 25.269 | F21: 6.306 | G21: 16.768 | H21: 4.841 | I21: 15.77 | J21: 42.113 | K21: 28.325 | L21: 3.619 | N21: 315.748 | O21: 18.244 | P21: 67.942 | Q21: 17.298 | R21: 35.867 | S21: 13.307 | T21: 35.298 | U21: 46.068 | V21: 68.782 | W21: 12.942 | Y21: 268.613 | Z21: 7.126 | AA21: 52.99 | AB21: 6.785 | AC21: 21.605 | AD21: 8.632 | AE21: 25.393 | AF21: 80.977 | AG21: 56.838 | AH21: 8.267 | AJ21: 100.951 | AK21: 3.098 | AL21: 31.457 | AM21: 0.736 | AN21: 9.923 | AO21: 3.423 | AP21: 10.357 | AQ21: 16.837 | AR21: 22.385 | AS21: 2.736 | AU21: 12553.105 | AV21: 889.073 | AW21: 2547.091 | AX21: 865.179 | AY21: 1874.777 | AZ21: 827.728 | BA21: 1266.801 | BB21: 1721.291 | BC21: 1937.818 | BD21: 610.249
B22: 202106 | C22: 146.875 | D22: 3.414 | E22: 25.274 | F22: 6.357 | G22: 16.847 | H22: 4.837 | I22: 15.765 | J22: 42.478 | K22: 28.314 | L22: 3.589 | N22: 317.178 | O22: 18.393 | P22: 68.129 | Q22: 17.297 | R22: 35.593 | S22: 13.242 | T22: 35.958 | U22: 46.007 | V22: 69.546 | W22: 13.012 | Y22: 269.619 | Z22: 7.206 | AA22: 53.099 | AB22: 6.79 | AC22: 21.354 | AD22: 8.641 | AE22: 25.7 | AF22: 81.862 | AG22: 56.611 | AH22: 8.356 | AJ22: 101.244 | AK22: 3.096 | AL22: 31.525 | AM22: 0.705 | AN22: 9.803 | AO22: 3.397 | AP22: 10.534 | AQ22: 16.983 | AR22: 22.45 | AS22: 2.75 | AU22: 12590.351 | AV22: 888.867 | AW22: 2556.396 | AX22: 867.621 | AY22: 1876.024 | AZ22: 829.707 | BA22: 1284.11 | BB22: 1727.478 | BC22: 1936.951 | BD22: 609.875
B23: 202107 | C23: 147.245 | D23: 3.371 | E23: 25.379 | F23: 6.266 | G23: 16.946 | H23: 4.833 | I23: 15.623 | J23: 42.794 | K23: 28.377 | L23: 3.654 | N23: 319.581 | O23: 18.381 | P23: 68.467 | Q23: 17.28 | R23: 35.474 | S23: 13.261 | T23: 36.257 | U23: 46.099 | V23: 71.286 | W23: 13.075 | Y23: 274.959 | Z23: 7.207 | AA23: 53.145 | AB23: 6.83 | AC23: 21.443 | AD23: 8.651 | AE23: 26.356 | AF23: 83.153 | AG23: 59.86 | AH23: 8.315 | AJ23: 101.749 | AK23: 3.099 | AL23: 31.499 | AM23: 0.703 | AN23: 9.836 | AO23: 3.391 | AP23: 10.586 | AQ23: 17.159 | AR23: 22.748 | AS23: 2.727 | AU23: 12689.616 | AV23: 891.455 | AW23: 2560.644 | AX23: 872.247 | AY23: 1890.652 | AZ23: 834.314 | BA23: 1310.395 | BB23: 1737.003 | BC23: 1959.322 | BD23: 619.569
B24: 202108 | C24: 148.087 | D24: 3.36 | E24: 25.184 | F24: 6.385 | G24: 17.013 | H24: 4.827 | I24: 15.578 | J24: 43.034 | K24: 29.046 | L24: 3.66 | N24: 319.48 | O24: 18.637 | P24: 68.436 | Q24: 17.126 | R24: 35.38 | S24: 13.298 | T24: 36.019 | U24: 46.49 | V24: 70.928 | W24: 13.166 | Y24: 276.117 | Z24: 7.08 | AA24: 53.364 | AB24: 6.8 | AC24: 21.684 | AD24: 8.601 | AE24: 26.309 | AF24: 84.258 | AG24: 59.553 | AH24: 8.467 | AJ24: 102.209 | AK24: 3.071 | AL24: 31.361 | AM24: 0.701 | AN24: 9.789 | AO24: 3.364 | AP24: 10.705 | AQ24: 17.487 | AR24: 22.97 | AS24: 2.76 | AU24: 12721.148 | AV24: 891.667 | AW24: 2564.613 | AX24: 873.227 | AY24: 1915.715 | AZ24: 834.402 | BA24: 1288.426 | BB24: 1749.723 | BC24: 1963.883 | BD24: 625.112
B25: 202109 | C25: 148.596 | D25: 3.353 | E25: 25.218 | F25: 6.392 | G25: 17.04 | H25: 4.749 | I25: 15.723 | J25: 43.481 | K25: 29.008 | L25: 3.632 | N25: 320.165 | O25: 18.81 | P25: 69.446 | Q25: 17.088 | R25: 35.23 | S25: 13.402 | T25: 36.468 | U25: 47.311 | V25: 69.118 | W25: 13.292 | Y25: 277.357 | Z25: 7.226 | AA25: 53.484 | AB25: 6.793 | AC25: 22.308 | AD25: 8.614 | AE25: 25.908 | AF25: 84.719 | AG25: 59.786 | AH25: 8.518 | AJ25: 101.935 | AK25: 3.085 | AL25: 31.683 | AM25: 0.702 | AN25: 9.741 | AO25: 3.37 | AP25: 10.657 | AQ25: 17.374 | AR25: 22.644 | AS25: 2.679 | AU25: 12805.096 | AV25: 902.381 | AW25: 2585.594 | AX25: 874.196 | AY25: 1934.885 | AZ25: 837.679 | BA25: 1301.276 | BB25: 1755.19 | BC25: 1971.696 | BD25: 627.447
B26: 202110 | C26: 148.668 | D26: 3.419 | E26: 25.25 | F26: 6.362 | G26: 17.214 | H26: 4.865 | I26: 16.241 | J26: 43.429 | K26: 28.253 | L26: 3.636 | N26: 320.892 | O26: 18.839 | P26: 70.113 | Q26: 17.248 | R26: 35.225 | S26: 13.405 | T26: 36.688 | U26: 47.172 | V26: 68.916 | W26: 13.285 | Y26: 277.712 | Z26: 7.285 | AA26: 53.537 | AB26: 6.921 | AC26: 22.231 | AD26: 8.674 | AE26: 26.572 | AF26: 84.401 | AG26: 59.574 | AH26: 8.516 | AJ26: 102.07 | AK26: 3.113 | AL26: 31.751 | AM26: 0.706 | AN26: 9.835 | AO26: 3.37 | AP26: 10.509 | AQ26: 17.539 | AR26: 22.602 | AS26: 2.646 | AU26: 12851.782 | AV26: 903.465 | AW26: 2599.966 | AX26: 876.759 | AY26: 1959.31 | AZ26: 842.35 | BA26: 1303.607 | BB26: 1761.381 | BC26: 1957.146 | BD26: 632.399
B27: 202111 | C27: 149.014 | D27: 3.472 | E27: 25.248 | F27: 6.431 | G27: 17.243 | H27: 4.784 | I27: 16.388 | J27: 43.48 | K27: 28.328 | L27: 3.64 | N27: 321.563 | O27: 18.995 | P27: 69.958 | Q27: 17.469 | R27: 34.949 | S27: 13.419 | T27: 36.996 | U27: 47.399 | V27: 68.999 | W27: 13.379 | Y27: 278.973 | Z27: 7.275 | AA27: 53.326 | AB27: 6.813 | AC27: 22.611 | AD27: 8.665 | AE27: 26.823 | AF27: 85.183 | AG27: 59.703 | AH27: 8.571 | AJ27: 102.465 | AK27: 3.124 | AL27: 31.869 | AM27: 0.71 | AN27: 9.749 | AO27: 3.371 | AP27: 10.51 | AQ27: 17.598 | AR27: 22.811 | AS27: 2.721 | AU27: 12933.002 | AV27: 910.258 | AW27: 2609.011 | AX27: 879.518 | AY27: 1982.143 | AZ27: 850.733 | BA27: 1317.698 | BB27: 1771.009 | BC27: 1959.61 | BD27: 636.978
B28: 202112 | C28: 149.465 | D28: 3.447 | E28: 25.413 | F28: 6.45 | G28: 17.172 | H28: 4.781 | I28: 16.662 | J28: 43.247 | K28: 28.649 | L28: 3.645 | N28: 320.81 | O28: 19.014 | P28: 69.639 | Q28: 17.388 | R28: 34.338 | S28: 13.424 | T28: 37.294 | U28: 47.335 | V28: 68.924 | W28: 13.455 | Y28: 279.392 | Z28: 7.317 | AA28: 53.482 | AB28: 6.794 | AC28: 22.674 | AD28: 8.635 | AE28: 26.889 | AF28: 85.494 | AG28: 59.592 | AH28: 8.515 | AJ28: 102.749 | AK28: 3.147 | AL28: 32 | AM28: 0.714 | AN28: 9.795 | AO28: 3.369 | AP28: 10.584 | AQ28: 17.534 | AR28: 22.877 | AS28: 2.729 | AU28: 12965.768 | AV28: 920.481 | AW28: 2615.328 | AX28: 883.619 | AY28: 1984.262 | AZ28: 855.52 | BA28: 1321.287 | BB28: 1769.737 | BC28: 1959.986 | BD28: 639.12
C29: Total | D29: Constr., Mining, & Nat Res | E29: Trade, Transp. & Util. | F29: Mfg. | G29: Prof. & Bus. Serv. | H29: Financial | I29: Leisure & Hosp. | J29: Educ. & Health Serv. | K29: Gov't | L29: Info. & Other Svcs | O29: Total | P29: Constr., Oil & Gas, Mining Sup. | Q29: Trade, Transp. & Util. | R29: Mfg. | S29: Prof. & Bus. Serv. | T29: Financial | U29: Leisure & Hosp. | V29: Educ. & Health Serv. | W29: Gov't | X29: Info. & Other Svcs
B30: 202002 | C30: =C6*$D$1+N6*$O$1+AJ6*$AK$1+Y6*$Z$1 -> 251.9859853 | D30: =D6*$D$1+O6*$O$1+AK6*$AK$1+Z6*$Z$1 -> 10.30531404 | E30: =E6*$D$1+P6*$O$1+AL6*$AK$1+AA6*$Z$1 -> 51.54567557 | F30: =F6*$D$1+Q6*$O$1+AM6*$AK$1+AB6*$Z$1 -> 10.22101495 | G30: =G6*$D$1+R6*$O$1+AN6*$AK$1+AC6*$Z$1 -> 23.21772338 | H30: =H6*$D$1+S6*$O$1+AO6*$AK$1+AD6*$Z$1 -> 9.528972203 | I30: =I6*$D$1+T6*$O$1+AP6*$AK$1+AE6*$Z$1 -> 27.65543258 | J30: =J6*$D$1+U6*$O$1+AQ6*$AK$1+AF6*$Z$1 -> 55.02485696 | K30: =K6*$D$1+V6*$O$1+AR6*$AK$1+AG6*$Z$1 -> 55.33956398 | L30: =L6*$D$1+W6*$O$1+AS6*$AK$1+AH6*$Z$1 -> 9.147279231 | O30: 12982.427 | P30: 1001.962 | Q30: 2537.21 | R30: 910.352 | S30: 1834.786 | T30: 818.259 | U30: 1422.731 | V30: 1776.303 | W30: 2001.794 | X30: 664.388
B31: 202003 | C31: 251.5990193 | D31: 10.32124126 | E31: 51.40375062 | F31: 10.23009868 | G31: 23.25028154 | H31: 9.4905538 | I31: 27.28263254 | J31: 55.18342116 | K31: 55.38697945 | L31: 9.050261252 | O31: 12907.619 | P31: 996.923 | Q31: 2535.171 | R31: 908.342 | S31: 1824.038 | T31: 817.777 | U31: 1381.884 | V31: 1771.718 | W31: 2002.843 | X31: 654.747
B32: 202004 | C32: 224.0673008 | D32: 9.716842461 | E32: 45.27944932 | F32: 9.027741921 | G32: 21.22477883 | H32: 9.10349845 | I32: 16.66548402 | J32: 51.44808767 | K32: 54.19163855 | L32: 7.410003485 | O32: 11527.323 | P32: 915.367 | Q32: 2334.158 | R32: 854.788 | S32: 1681.945 | T32: 793.619 | U32: 857.046 | V32: 1597.527 | W32: 1949.933 | X32: 529.804
B33: 202005 | C33: 230.0657709 | D33: 9.951591844 | E33: 46.63068814 | F33: 9.141087676 | G33: 21.85333166 | H33: 9.123272801 | I33: 19.87379444 | J33: 52.6755627 | K33: 53.15405046 | L33: 7.66261506 | O33: 11757.683 | P33: 902.564 | Q33: 2384.289 | R33: 856.494 | S33: 1694.214 | T33: 795.2 | U33: 1003.813 | V33: 1646.585 | W33: 1914.852 | X33: 547.801
B34: 202006 | C34: 237.5688903 | D34: 9.959089847 | E34: 48.64647771 | F34: 9.468109949 | G34: 22.58084201 | H34: 9.199970923 | I34: 22.34960133 | J34: 53.40333753 | K34: 53.93550401 | L34: 8.025508641 | O34: 11973.718 | P34: 890.054 | Q34: 2436.926 | R34: 858.399 | S34: 1705.472 | T34: 796.518 | U34: 1108.87 | V34: 1675.631 | W34: 1918.245 | X34: 571.436
B35: 202007 | C35: 238.8077603 | D35: 9.991059703 | E35: 48.80662808 | F35: 9.585911866 | G35: 22.99168755 | H35: 9.137935514 | I35: 21.95769189 | J35: 53.12804242 | K35: 55.28703878 | L35: 7.921388117 | O35: 12005.515 | P35: 879.638 | Q35: 2445.352 | R35: 850.198 | S35: 1721.651 | T35: 796.819 | U35: 1096.938 | V35: 1677.495 | W35: 1948.84 | X35: 575.843
B36: 202008 | C36: 239.2492822 | D36: 9.899992993 | E36: 49.04795181 | F36: 9.602397087 | G36: 23.04956942 | H36: 9.122545629 | I36: 22.31100646 | J36: 52.50798176 | K36: 55.68202085 | L36: 8.025864775 | O36: 12082.522 | P36: 875.957 | Q36: 2455.774 | R36: 850.416 | S36: 1734.376 | T36: 798.258 | U36: 1115.326 | V36: 1676.352 | W36: 1983.852 | X36: 579.024
B37: 202009 | C37: 239.4537963 | D37: 9.970163547 | E37: 49.44093955 | F37: 9.666630166 | G37: 22.93453228 | H37: 9.140372674 | I37: 23.30289369 | J37: 52.71373311 | K37: 54.08763466 | L37: 8.197313011 | O37: 12142.75 | P37: 875.208 | Q37: 2473.136 | R37: 852.866 | S37: 1740.135 | T37: 800.891 | U37: 1149.731 | V37: 1679.617 | W37: 1972.37 | X37: 585.337
B38: 202010 | C38: 239.3251762 | D38: 10.01978099 | E38: 50.15588732 | F38: 9.749062263 | G38: 23.21395688 | H38: 9.142913468 | I38: 23.9889477 | J38: 52.90697716 | K38: 51.94497037 | L38: 8.202128329 | O38: 12254.238 | P38: 877.863 | Q38: 2508.145 | R38: 855.111 | S38: 1765.982 | T38: 806.487 | U38: 1192.866 | V38: 1699.296 | W38: 1943.37 | X38: 591.81
B39: 202011 | C39: 238.8145373 | D39: 9.99886598 | E39: 49.93508144 | F39: 9.695279518 | G39: 23.49935983 | H39: 9.090180496 | I39: 23.50794857 | J39: 52.78056728 | K39: 52.12126207 | L39: 8.187064074 | O39: 12291.218 | P39: 879.136 | Q39: 2509.347 | R39: 855.79 | S39: 1781.679 | T39: 809.516 | U39: 1204.972 | V39: 1702.946 | W39: 1943.381 | X39: 591.1
B40: 202012 | C40: 239.9280641 | D40: 10.02264931 | E40: 50.06367939 | F40: 9.833137595 | G40: 23.62740986 | H40: 9.112791633 | I40: 23.87634127 | J40: 52.90016882 | K40: 52.29527663 | L40: 8.196184632 | O40: 12338.701 | P40: 880.269 | Q40: 2512.971 | R40: 859.004 | S40: 1799.862 | T40: 812.11 | U40: 1213.08 | V40: 1707.076 | W40: 1946.938 | X40: 594.133
B41: 202101 | C41: 240.9365737 | D41: 10.11353192 | E41: 50.25963404 | F41: 9.875281015 | G41: 23.83752844 | H41: 9.032391053 | I41: 24.29819856 | J41: 52.99040082 | K41: 52.29582203 | L41: 8.233458033 | O41: 12382.394 | P41: 879.259 | Q41: 2511.85 | R41: 862.101 | S41: 1820.102 | T41: 815.307 | U41: 1218.646 | V41: 1713.14 | W41: 1948.672 | X41: 600.047
B42: 202102 | C42: 240.860695 | D42: 10.03429919 | E42: 50.45659238 | F42: 9.869243991 | G42: 23.86783988 | H42: 9.089283475 | I42: 24.44246627 | J42: 52.78654524 | K42: 51.99746633 | L42: 8.316920105 | O42: 12342.183 | P42: 872.343 | Q42: 2511.862 | R42: 860.54 | S42: 1818.83 | T42: 815.784 | U42: 1208.438 | V42: 1704.502 | W42: 1940.187 | X42: 596.286
B43: 202103 | C43: 242.2382414 | D43: 10.15014619 | E43: 50.77138081 | F43: 9.887587131 | G43: 24.1156894 | H43: 9.052150885 | I43: 24.95419239 | J43: 52.90049008 | K43: 51.99090583 | L43: 8.41587407 | O43: 12465.535 | P43: 893.425 | Q43: 2530.494 | R43: 866.345 | S43: 1846.213 | T43: 823.7 | U43: 1234.055 | V43: 1713.383 | W43: 1938.386 | X43: 606.269
B44: 202104 | C44: 243.5429311 | D44: 10.22307179 | E44: 50.89126793 | F44: 9.909373595 | G44: 24.36192822 | H44: 9.119382442 | I44: 25.30061666 | J44: 53.11198447 | K44: 52.17775485 | L44: 8.447599728 | O44: 12516.949 | P44: 893.192 | Q44: 2535.643 | R44: 864.804 | S44: 1861.446 | T44: 827.066 | U44: 1253.162 | V44: 1720.901 | W44: 1938.705 | X44: 608.484
B45: 202105 | C45: 244.7170381 | D45: 10.17284771 | E45: 51.16100763 | F45: 9.928480524 | G45: 24.71629331 | H45: 9.098844116 | I45: 25.62104287 | J45: 53.29299957 | K45: 52.18070567 | L45: 8.544761927 | O45: 12553.105 | P45: 889.073 | Q45: 2547.091 | R45: 865.179 | S45: 1874.777 | T45: 827.728 | U45: 1266.801 | V45: 1721.291 | W45: 1937.818 | X45: 610.249
B46: 202106 | C46: =C22*$D$1+N22*$O$1+AJ22*$AK$1+Y22*$Z$1 -> 245.7000543 | D46: =D22*$D$1+O22*$O$1+AK22*$AK$1+Z22*$Z$1 -> 10.25595659 | E46: 51.27618549 | F46: 9.934948781 | G46: 24.53029084 | H46: 9.073495629 | I46: 25.9905188 | J46: 53.64171263 | K46: 52.39974359 | L46: 8.596705021 | O46: 12590.351 | P46: 888.867 | Q46: 2556.396 | R46: 867.621 | S46: 1876.024 | T46: 829.707 | U46: 1284.11 | V46: 1727.478 | W46: 1936.951 | X46: 609.875
B47: 202107 | C47: 248.4804455 | D47: =D23*$D$1+O23*$O$1+AK23*$AK$1+Z23*$Z$1 -> 10.24458999 | E47: 51.43374725 | F47: 9.925464089 | G47: 24.53601252 | H47: 9.082499397 | I47: 26.29943165 | J47: 54.1761047 | K47: 54.16647428 | L47: 8.615601846 | O47: 12689.616 | P47: 891.455 | Q47: 2560.644 | R47: 872.247 | S47: 1890.652 | T47: 834.314 | U47: 1310.395 | V47: 1737.003 | W47: 1959.322 | X47: 619.569
B48: 202108 | C48: 249.0250719 | D48: 10.29400658 | E48: 51.44303462 | F48: 9.878297374 | G48: 24.58570925 | H48: 9.075729647 | I48: 26.20090816 | J48: 54.76705811 | K48: 54.0751797 | L48: 8.704700128 | O48: 12721.148 | P48: 891.667 | Q48: 2564.613 | R48: 873.227 | S48: 1915.715 | T48: 834.402 | U48: 1288.426 | V48: 1749.723 | W48: 1963.883 | X48: 625.112
B49: 202109 | C49: 249.7455245 | D49: 10.40742959 | E49: 51.90725881 | F49: 9.863049513 | G49: 24.73272985 | H49: 9.106177879 | I49: 26.25809617 | J49: 55.29190155 | K49: 53.42438993 | L49: 8.754163492 | O49: 12805.096 | P49: 902.381 | Q49: 2585.594 | R49: 874.196 | S49: 1934.885 | T49: 837.679 | U49: 1301.276 | V49: 1755.19 | W49: 1971.696 | X49: 627.447
B50: 202110 | C50: 250.1643877 | D50: 10.45262968 | E50: 52.18946592 | F50: 9.960441892 | G50: 24.74745045 | H50: 9.147312595 | I50: 26.63151772 | J50: 55.14613019 | K50: 53.14143389 | L50: 8.747597084 | O50: 12851.782 | P50: 903.465 | Q50: 2599.966 | R50: 876.759 | S50: 1959.31 | T50: 842.35 | U50: 1303.607 | V50: 1761.381 | W50: 1957.146 | X50: 632.399
B51: 202111 | C51: 250.9385139 | D51: =D27*$D$1+O27*$O$1+AK27*$AK$1+Z27*$Z$1 -> 10.51868232 | E51: 52.07584556 | F51: 10.02079829 | G51: 24.76284607 | H51: 9.135549437 | I51: 26.8555996 | J51: 55.50392887 | K51: 53.25329619 | L51: 8.810743171 | O51: 12933.002 | P51: 910.258 | Q51: 2609.011 | R51: 879.518 | S51: 1982.143 | T51: 850.733 | U51: 1317.698 | V51: 1771.009 | W51: 1959.61 | X51: 636.978
B52: 202112 | C52: =C28*$D$1+N28*$O$1+AJ28*$AK$1+Y28*$Z$1 -> 250.9057655 | D52: =D28*$D$1+O28*$O$1+AK28*$AK$1+Z28*$Z$1 -> 10.53798798 | E52: =E28*$D$1+P28*$O$1+AL28*$AK$1+AA28*$Z$1 -> 52.05164213 | F52: =F28*$D$1+Q28*$O$1+AM28*$AK$1+AB28*$Z$1 -> 9.987899763 | G52: =G28*$D$1+R28*$O$1+AN28*$AK$1+AC28*$Z$1 -> 24.54663852 | H52: =H28*$D$1+S28*$O$1+AO28*$AK$1+AD28*$Z$1 -> 9.126831155 | I52: =I28*$D$1+T28*$O$1+AP28*$AK$1+AE28*$Z$1 -> 27.04634929 | J52: =J28*$D$1+U28*$O$1+AQ28*$AK$1+AF28*$Z$1 -> 55.53320775 | K52: =K28*$D$1+V28*$O$1+AR28*$AK$1+AG28*$Z$1 -> 53.25292834 | L52: =L28*$D$1+W28*$O$1+AS28*$AK$1+AH28*$Z$1 -> 8.822832251 | O52: 12965.768 | P52: 920.481 | Q52: 2615.328 | R52: 883.619 | S52: 1984.262 | T52: 855.52 | U52: 1321.287 | V52: 1769.737 | W52: 1959.986 | X52: 639.12
O53: Total | P53: Trade, Transp. & Util. | Q53: Gov't | R53: Prof. & Bus. Serv. | S53: Educ. & Health Serv. | T53: Leisure & Hosp. | U53: Constr., Mining, & Nat Res | V53: Mfg. | W53: Financial | X53: Info. & Other Svcs
C55: =O$53 -> Total | D55: =P$53&CHAR(10)&TEXT(P$62/100,"(#,###.0%)") -> Trade, Transp. & Util. (20.2%) | E55: =Q$53&CHAR(10)&TEXT(Q$62/100,"(#,###.0%)") -> Gov't (15.1%) | F55: Prof. & Bus. Serv. (15.3%) | G55: Educ. & Health Serv. (13.6%) | H55: Leisure & Hosp. (10.2%) | I55: Constr., Mining, & Nat Res (7.1%) | J55: Mfg. (6.8%) | K55: Financial (6.6%) | L55: Info. & Other Svcs (4.9%)
A56: Border metropolitan statistical areas | B56: Percent change | C56: =(C52/C30-1)*100 -> -0.4286825068 | D56: =(E52/E30-1)*100 -> 0.9815887686 | E56: =(K52/K30-1)*100 -> -3.770603692 | F56: =(G52/G30-1)*100 -> 5.723709946 | G56: =(J52/J30-1)*100 -> 0.9238566336 | H56: =(I52/I30-1)*100 -> -2.202400156 | I56: =(D52/D30-1)*100 -> 2.257805393 | J56: =(F52/F30-1)*100 -> -2.28074406 | K56: =(H52/H30-1)*100 -> -4.220193309 | L56: =(L52/L30-1)*100 -> -3.546923319
A57: Texas | B57: Percent change | C57: =(O52/O30-1)*100 -> -0.1283196123 | D57: =(Q52/Q30-1)*100 -> 3.078893745 | E57: =(W52/W30-1)*100 -> -2.088526592 | F57: =(S52/S30-1)*100 -> 8.14678115 | G57: =(V52/V30-1)*100 -> -0.3696441429 | H57: =(U52/U30-1)*100 -> -7.130230521 | I57: =(P52/P30-1)*100 -> -8.132144732 | J57: =(R52/R30-1)*100 -> -2.936556409 | K57: =(T52/T30-1)*100 -> 4.553692657 | L57: =(X52/X30-1)*100 -> -3.803199335
N62: Texas | P62: =Q52/$O$52*100 -> 20.17102265 | Q62: =W52/O52*100 -> 15.11662094 | R62: =S52/O52*100 -> 15.30385242 | S62: =V52/O52*100 -> 13.6493033 | T62: =U52/O52*100 -> 10.1905803 | U62: =P52/O52*100 -> 7.099317217 | V62: =R52/O52*100 -> 6.815014737 | W62: =T52/O52*100 -> 6.598297918 | X62: =X52/O52*100 -> 4.929287644
E64: Months | F64: 12
